Cogmind - Beta 16 @@@ ROGUE MODE // 2025.11.04 @ 02:41:09 Player: szymekc Result: Establishing 0b11! Performance ------------- Evolutions (9) 4500 Regions Visited (35) 7000 Robots Destroyed (739) 3695 Value Destroyed (44390) 44390 Prototype IDs (364) 7280 Alien Tech Used (10) 2000 Bonus (51338) 51338 TOTAL SCORE: 120203 Bonus ------- High Alert Combat Kills 16593 Follower Combat Kills 4259 Destroyed Unchained 1000 Entered Garrisons 1800 Used RIF Installer 4500 Destroyed MAIN.C Guards 500 Met MAIN.C 5000 Destroyed MAIN.C Shell 5000 Destroyed MAIN.C 10000 Met Architect 300 Destroyed A8 300 Win 3000 Friendly Fire -914 Cogmind --------- Core Integrity 434/1850 Matter 388/425 Energy 376/380 System Corruption 2% Temperature Cool (8) Movement Hovering (65) Location 0b11 Command Parts ------- > --- POWER (3) -------- Zero-point Reactor Zero-point Reactor > --- PROPULSION (7) --- Combat Antigrav System Combat Antigrav System Combat Antigrav System Experimental Gyrokinetic Inverter > --- UTILITY (12) ----- Experimental Heat Sink Advanced Coolant Injector Spectral Analyzer Advanced Terrain Scan Processor Experimental Core Analyzer Experimental Core Analyzer Improved Armor Integrity Analyzer Graphene Brace > --- WEAPON (4) ------- Omega Cannon > --- INVENTORY (7) ---- Vortex Chain Reactor Peak State ------------ > --- POWER ------------ Singularity Reactor > --- PROPULSION ------- Experimental Biometal Heavy Treads High-density Centrium Heavy Treads High-density Centrium Heavy Treads Enhanced Biometal Leg > --- UTILITY ---------- Huge Storage Unit Experimental Optical Array Experimental Core Analyzer Advanced Cloaking Device Heavy Regenerative Plating Relay Coupler [NC] Relay Coupler [C] Relay Coupler [Proto] Microwarp Drive > --- WEAPON ----------- Cooled Nova Cannon Advanced Remote Datajack Sigix Broadsword > --- INVENTORY -------- Advanced Heavy Siege Treads Advanced Energy Well Advanced Energy Well YI-UF0's Bottomless Matter Pit Experimental Terrain Scanner Improved Armor Integrity Analyzer Advanced Weapon Cycler Graphene Brace Experimental EM Disruption Field Advanced Force Field Relay Coupler [C] Relay Coupler [Proto] Relay Coupler [Proto] Relay Coupler [Proto] Relay Coupler [Proto] Transdimensional Reconstructor Transdimensional Reconstructor Core Regenerator Sigix Shearcannon Omega Cannon Enhanced Gamma Bomb Array [Rating: 276] Favorites ----------- Power Particle Reactor Engine Ion Engine Power Core Enhanced Nuclear Core Reactor Particle Reactor Propulsion Improved Heavy Treads Treads Improved Heavy Treads Leg Enhanced Biometal Leg Wheel Armored Huge Wheel Hover Unit Combat Antigrav System Utility Huge Storage Unit Device Advanced Force Field Storage Huge Storage Unit Processor Experimental Core Analyzer Hackware Relay Coupler [NC] Protection Heavy Regenerative Plating Artifact Microwarp Drive Weapon Nova Cannon Energy Gun Wave Gun Energy Cannon Nova Cannon Ballistic Gun Gauss Rifle Ballistic Cannon Magnetic Acceleration Cannon Launcher Enhanced Gamma Bomb Array Special Weapon Advanced Remote Datajack Impact Weapon Power Maul Slashing Weapon Sigix Broadsword Special Melee Weapon Datajack Build | -11 -10 -10 -9 -9 -9 -9 -7 -7 -7 -7 -6 -6 -6 -6 -6 -6 -5 -5 -5 -5 -4 -4 -4 -4 -3 -3 -3 -3 -3 -2 -2 -2 -1 -1 -1 ------- Run | Yrd Mat Min Mat Sto Gar Rec Fac Gar Fac Gar Fac Was Fac Gar Fac Gar Fac Was Fac Gar Fac Was Fac Gar Res Gar Res Tes Gar Res Qua Sec Acc Com Ac0 Slots Evolved 18 | . . . 2 . . . 4 . . . 2 . . . . . 2 . . . 2 . . . 2 . . . . 2 . . 2 . . Power 2 | . . . . . . . . . . . . . . . . . 1 . . . 1 . . . . . . . . . . . . . . Propulsion 4 | . . . 1 . . . 1 . . . . . . . . . 1 . . . . . . . 1 . . . . . . . . . . Utility 10 | . . . . . . . 3 . . . 2 . . . . . . . . . 1 . . . 1 . . . . 2 . . 1 . . Weapon 2 | . . . 1 . . . . . . . . . . . . . . . . . . . . . . . . . . . . . 1 . . Parts Attached 416 | 7 4 9 13 13 25 . 10 12 6 13 1 1 19 18 1 24 5 . 21 24 3 14 5 18 6 19 11 25 5 6 9 12 12 44 1 Power 53 | 1 . 1 2 1 2 . 1 1 . 1 . . . 1 . 2 1 . 2 9 1 5 . 3 1 3 2 4 . 1 . 1 . 7 . Engine 10 | 1 . 1 2 1 2 . . . . . . . . . . . . . . 3 . . . . . . . . . . . . . . . Core 11 | . . . . . . . 1 1 . . . . . . . . . . 2 5 1 . . 1 . . . . . . . . . . . Reactor 32 | . . . . . . . . . . 1 . . . 1 . 2 1 . . 1 . 5 . 2 1 3 2 4 . 1 . 1 . 7 . Propulsion 96 | 2 1 2 5 3 9 . 1 3 2 2 . . . 6 . 6 2 . 3 6 . 5 . 4 1 5 . 4 . 1 1 4 1 17 . Treads 71 | 2 1 2 5 3 9 . . 3 . 2 . . . 6 . 2 . . . 6 . 3 . 4 1 5 . 3 . 1 1 3 1 8 . Leg 10 | . . . . . . . . . . . . . . . . 4 2 . 2 . . . . . . . . 1 . . . 1 . . . Wheel 3 | . . . . . . . 1 . 2 . . . . . . . . . . . . . . . . . . . . . . . . . . Hover 12 | . . . . . . . . . . . . . . . . . . . 1 . . 2 . . . . . . . . . . . 9 . Flight . | . . . . . . . . . . . . . . . . . . . . . . . . . . . . . . . . . . . . Utility 165 | 2 2 4 2 2 7 . 4 3 3 6 1 1 11 7 1 10 2 . 9 3 2 2 3 7 4 7 7 9 5 3 4 5 9 17 1 Device 77 | 2 . 1 2 1 5 . 1 1 . 2 . 1 4 2 . 4 1 . 3 2 2 . 1 2 3 4 4 3 3 . 2 2 7 11 1 Storage 9 | . 2 1 . . 1 . . . . . . . . . . . . . . . . . . . . 1 . 3 . . . . . 1 . Processor 19 | . . . . . . . 1 . . . . . 1 3 . 1 . . 1 . . . 1 1 . 1 2 . . . . 2 1 4 . Hackware 38 | . . . . 1 . . . 1 2 1 1 . 4 2 1 4 1 . 4 1 . 1 1 3 1 1 1 . 1 3 2 . 1 . . Protection 21 | . . 2 . . 1 . 2 1 1 3 . . 2 . . 1 . . 1 . . 1 . 1 . . . 3 1 . . . . 1 . Artifact 1 | . . . . . . . . . . . . . . . . . . . . . . . . . . . . . . . . 1 . . . Weapon 102 | 2 1 2 4 7 7 . 4 5 1 4 . . 8 4 . 6 . . 7 6 . 2 2 4 . 4 2 8 . 1 4 2 2 3 . Energy Gun 10 | . . . 1 . . . . . . . . . . . . . . . 2 3 . 1 . . . . . 2 . . . . . 1 . Energy Cannon 29 | . . . . 1 1 . . 1 . . . . 5 2 . 1 . . 2 1 . 1 2 1 . 2 2 3 . . 2 . 1 1 . Ballistic Gun 37 | 2 . 2 3 4 3 . 1 3 . 4 . . 1 1 . 5 . . 2 . . . . 3 . 1 . 1 . . . . 1 . . Ballistic Cannon 5 | . . . . 1 1 . . . . . . . 1 1 . . . . . . . . . . . . . 1 . . . . . . . Launcher 6 | . . . . 1 . . 1 . 1 . . . . . . . . . 1 1 . . . . . . . . . . . 1 . . . Special Weapon 10 | . 1 . . . . . 1 . . . . . 1 . . . . . . 1 . . . . . 1 . 1 . 1 1 1 . 1 . Impact Weapon 2 | . . . . . . . 1 1 . . . . . . . . . . . . . . . . . . . . . . . . . . . Slashing Weapon 2 | . . . . . 1 . . . . . . . . . . . . . . . . . . . . . . . . . 1 . . . . Piercing Weapon . | . . . . . . . . . . . . . . . . . . . . . . . . . . . . . . . . . . . . Special Melee Weapon 1 | . . . . . 1 . . . . . . . . . . . . . . . . . . . . . . . . . . . . . . Unidentified Prototypes 52 | . . 2 1 2 . . 3 . . 1 . . 2 2 . 5 . . 6 . . . . . . . 2 13 1 . 1 7 1 3 . Corrupted Parts 8 | . . . . . . . . . . . . . . . . . . . . . . . . . . . . . . . . . . 8 . System Corruption 46 | . . . . . . . . . . . . . . . . . . . . . . . . . . . . . . . . . . 46 . Parts Lost 53 | . . 2 . . 14 . . 4 . 2 . . 2 2 . 2 . . 3 4 . . . . . 1 . . 1 . 1 3 . 1 11 Power 8 | . . . . . 2 . . . . . . . . . . 1 . . . 4 . . . . . . . . . . . . . . 1 Propulsion 8 | . . . . . 4 . . 1 . . . . . . . . . . . . . . . . . . . . . . . . . . 3 Utility 24 | . . 1 . . 2 . . 2 . 1 . . 2 2 . 1 . . 1 . . . . . . 1 . . 1 . 1 3 . 1 5 Weapon 13 | . . 1 . . 6 . . 1 . 1 . . . . . . . . 2 . . . . . . . . . . . . . . . 2 Highest Loss Streak 7 | . . 2 . . 7 . . 3 . 2 . . 1 2 . 1 . . 3 2 . . . . . 1 . . 1 . 1 2 . 1 5 To Critical Strikes 1 | . . . . . . . . . . . . . . . . 1 . . . . . . . . . . . . . . . . . . . Average Backups 21 | 1 12 14 17 20 21 24 23 23 23 23 21 23 22 23 23 23 24 24 23 22 23 23 23 24 23 24 24 23 23 21 21 20 21 17 3 Power . | . 1 1 1 1 . . . . . . . . . . 1 . . . . . . . . . . . . . . . 1 . . . 1 Propulsion 2 | . 2 2 3 5 3 4 4 2 2 1 2 2 2 1 3 3 . 1 1 6 5 5 6 4 3 3 3 3 1 . . . 1 . . Utility 12 | . 5 8 9 8 13 17 14 15 16 15 14 16 13 13 13 13 16 16 13 10 13 12 13 14 13 14 15 13 16 16 14 12 13 9 . Weapon 4 | . 2 2 2 3 2 2 4 3 4 4 4 4 5 5 5 6 6 6 6 4 3 4 3 4 5 5 5 6 4 3 4 3 3 4 . Tool/Special . | . . . . . . . . . . . . . . . . . . . . . . . . . . . . . . . . . . . . Unused Backups 97 | 1 . . 3 4 3 . . 3 3 11 . 1 7 3 . 2 . . 3 4 1 5 . 5 . 4 . 4 6 1 1 6 3 12 1 Power 5 | 1 . . . 1 . . . . . . . . . . . . . . . . . . . . . . . 1 . . . . . 2 . Propulsion 20 | . . . 1 3 . . . . 2 2 . . . . . . . . 2 1 . 3 . . . . . . 2 1 . 2 1 . . Utility 48 | . . . 2 . 3 . . 3 1 5 . 1 2 3 . 1 . . 1 3 1 1 . 3 . 4 . 1 4 . 1 1 1 5 1 Weapon 21 | . . . . . . . . . . 4 . . 5 . . 1 . . . . . 1 . 2 . . . 2 . . . . 1 5 . Tool/Special 3 | . . . . . . . . . . . . . . . . . . . . . . . . . . . . . . . . 3 . . . Average Slot Usage (%) 82 | . 100 99 99 100 98 100 92 89 78 75 79 76 82 85 81 81 99 100 98 80 78 84 84 83 79 79 83 81 79 80 69 66 70 75 84 Engine 2 | . 14 14 11 11 10 11 3 . . . . . . . . . . . . 1 5 1 . . . . . . . . . . . . . Core 1 | . . . . . . . 3 7 7 5 . . . . . . . . . 6 5 4 . 1 3 1 . . . . . . . . . Reactor 5 | . . . . . . . . . . 1 6 6 6 6 6 6 11 11 10 1 . 8 15 13 9 12 14 14 14 11 4 4 3 7 10 Treads 15 | . 28 28 33 33 32 33 15 15 4 9 13 13 13 12 13 12 . . . 14 15 14 15 14 13 13 14 14 14 13 13 12 11 11 . Leg 1 | . . . . . . . . . . . . . . . . 1 28 29 29 2 . . . . . . . . . . . 1 2 . . Device 11 | . 14 3 9 11 8 11 18 12 2 12 19 16 12 17 7 12 4 5 11 8 15 10 10 11 13 16 14 14 10 9 11 9 8 14 20 Storage 5 | . 13 14 11 11 11 11 7 7 7 7 6 6 6 6 6 6 5 5 5 5 5 5 5 5 4 4 4 4 4 4 4 4 3 3 . Processor 9 | . . . . . . . 3 7 7 . . . 5 6 13 13 17 17 17 17 15 15 15 15 14 14 14 14 14 13 13 8 10 12 19 Hackware 4 | . . . . . . . . . 4 . 6 6 10 7 13 11 12 11 3 1 . 4 5 3 3 2 7 2 3 11 9 12 11 4 . Protection 2 | . . 10 1 . 2 . 8 7 7 8 6 6 6 6 4 . . . . . . . . . . . . 2 4 4 4 4 3 2 . Energy Cannon 5 | . . . . . 6 11 7 9 . 2 . . 6 18 2 . . . 1 11 . 1 10 7 3 12 9 10 8 9 2 2 3 2 2 Ballistic Gun 6 | . 22 27 31 28 11 . . 6 14 16 10 18 8 . 2 4 16 17 13 . . . . 6 8 . 1 . 3 . . . 1 1 . Slashing Weapon 1 | . . . . . 7 11 3 . . . . . . . . . . . . . . . . . . . . . . . 3 4 2 2 2 Peak Build Rating 276 | 9 9 17 18 25 33 37 56 56 56 74 83 83 90 112 108 128 145 144 154 147 138 148 147 151 164 170 169 199 200 209 221 261 276 275 250 Average Rating 136 | 5 7 9 14 20 27 36 52 52 53 65 82 77 84 93 103 109 142 143 145 129 132 139 144 144 156 166 163 175 193 203 215 232 261 248 222 On Entrance 116 | . 9 9 10 18 25 31 37 56 51 54 73 83 75 87 107 108 127 144 144 146 124 138 143 143 151 158 167 163 199 193 208 216 260 274 247 Avg Prop Armor Cover (%) 4 | . . . . . . . 11 10 8 . . . . . . . . . 4 . 10 . . 1 . . . . . . . 1 1 1 . Naked Turns . | . . . . . . . . . . . . . . . . . . . . . . . . . . . . . . . . . . . . Heaviest Build 218 | 10 49 49 56 60 117 117 132 125 123 134 136 136 140 141 134 135 148 148 154 141 141 173 180 180 160 179 179 195 207 201 191 192 201 218 107 Greatest Support 295 | 40 40 40 60 69 69 63 83 28 56 150 150 150 150 150 135 135 150 150 150 173 173 173 173 178 225 225 225 255 255 255 250 265 265 295 108 Greatest Overweight (x) 4 | . 1 1 . . 2 1 4 4 4 4 . . . 1 . 1 . . 1 . 1 1 1 1 . 1 . 1 . . . . . 1 . Average Overweight (x) . | . . . . . . 1 3 4 2 . . . . . . . . . . . . . . . . . . . . . . . . . . Largest Inventory Capacity 27 | 5 20 20 20 20 25 25 25 25 25 25 25 25 25 25 25 25 25 25 25 25 25 25 25 25 25 25 25 25 25 25 25 27 27 27 7 Average Capacity 24 | 5 17 15 19 20 23 25 25 25 25 25 25 25 25 25 25 25 25 25 25 25 25 25 25 25 25 25 25 25 25 25 25 25 27 23 7 Most Carried 27 | 5 18 18 20 20 25 24 25 25 25 25 25 25 25 25 25 25 25 24 25 25 25 25 25 25 25 25 25 25 25 25 25 27 27 27 7 Average Carried 23 | 1 12 14 17 19 21 24 24 24 24 24 23 24 24 24 24 24 23 23 24 24 24 24 24 24 23 24 24 24 24 23 24 24 26 21 5 Final Capacity 27 | 5 20 15 20 20 25 25 25 25 25 25 25 25 25 25 25 25 25 25 25 25 25 25 25 25 25 25 25 25 25 25 25 27 27 7 7 Final Carried 27 | 4 18 15 20 20 24 24 25 24 25 25 25 25 24 25 25 25 24 24 25 25 25 25 25 25 25 25 24 25 25 25 24 26 27 7 2 Class Distribution -------------------- 18% | Botlord-Mutant 17% | Botlord-Tank 14% | Botlord-Gunner 13% | Bothacker-Mutant 9% | Bothacker-Tank 7% | Scavenger-Mutant 6% | Mutant 4% | Bothacker-Gunner 3% | Tank 3% | Hauler-Mutant Dominant Class ---------------- Mutant | -10/Materials Mutant | -10/Mines Tank | -9/Materials Tank | -9/Storage Scavenger-Mutant | -9/Garrison Bothacker-Mutant | -9/Recycling Bothacker-Mutant | -7/Factory Bothacker-Mutant | -7/Garrison Bothacker-Tank | -7/Factory Bothacker-Tank | -7/Garrison Bothacker-Mutant | -6/Factory Bothacker-Tank | -6/Waste Bothacker-Tank | -6/Factory Bothacker-Tank | -6/Garrison Botlord-Mutant | -6/Factory Botlord-Mutant | -6/Garrison Botlord-Gunner | -5/Factory Botlord-Gunner | -5/Waste Botlord-Gunner | -5/Factory Bothacker-Gunner | -5/Garrison Botlord-Gunner | -4/Factory Botlord-Tank | -4/Waste Botlord-Tank | -4/Factory Botlord-Tank | -4/Garrison Botlord-Gunner | -3/Research Botlord-Tank | -3/Garrison Botlord-Gunner | -3/Research Botlord-Tank | -3/Testing Botlord-Tank | -3/Garrison Botlord-Tank | -2/Research Botlord-Mutant | -2/Quarantine Botlord-Mutant | -2/Section 7 Botlord-Mutant | -1/Access Scavenger-Mutant | -1/Command Scavenger-Mutant | -1/Access_0 Resources | -11 -10 -10 -9 -9 -9 -9 -7 -7 -7 -7 -6 -6 -6 -6 -6 -6 -5 -5 -5 -5 -4 -4 -4 -4 -3 -3 -3 -3 -3 -2 -2 -2 -1 -1 -1 ----------- Run | Yrd Mat Min Mat Sto Gar Rec Fac Gar Fac Gar Fac Was Fac Gar Fac Gar Fac Was Fac Gar Fac Was Fac Gar Res Gar Res Tes Gar Res Qua Sec Acc Com Ac0 Matter Collected 28716 | 324 203 503 544 1346 1265 54 242 748 109 1454 . 426 1189 764 801 1859 239 589 2637 587 55 307 138 1308 713 1149 399 859 1142 445 457 1717 1451 2625 68 Remotely . | . . . . . . . . . . . . . . . . . . . . . . . . . . . . . . . . . . . . Salvage Created 47060 | 211 476 273 539 1654 986 384 267 1541 271 1701 83 235 882 1894 577 1144 591 1004 3244 2959 137 1883 394 2253 1937 2247 367 1725 2676 939 2535 3287 3148 2208 408 Parts 2071 | 16 28 9 43 104 44 11 10 58 21 76 3 . 58 63 16 62 25 21 127 112 8 38 25 86 94 91 10 117 106 52 126 137 164 86 24 Haulers Intercepted 17 | . 2 . 5 5 . . 1 . . . . . . . . . 1 . 1 . . . . . 1 . . 1 . . . . . . . Recyclers Shooed 14 | . 1 . 1 2 . . . . . . . . 2 . . . 1 . 2 . . . . . 4 . . . . . . . . 1 . Parts Field Recycled . | . . . . . . . . . . . . . . . . . . . . . . . . . . . . . . . . . . . . Retrieved Matter . | . . . . . . . . . . . . . . . . . . . . . . . . . . . . . . . . . . . . Parts Self-Destructed . | . . . . . . . . . . . . . . . . . . . . . . . . . . . . . . . . . . . . Prevented . | . . . . . . . . . . . . . . . . . . . . . . . . . . . . . . . . . . . . Parts Restored . | . . . . . . . . . . . . . . . . . . . . . . . . . . . . . . . . . . . . Kills | -11 -10 -10 -9 -9 -9 -9 -7 -7 -7 -7 -6 -6 -6 -6 -6 -6 -5 -5 -5 -5 -4 -4 -4 -4 -3 -3 -3 -3 -3 -2 -2 -2 -1 -1 -1 ------- Run | Yrd Mat Min Mat Sto Gar Rec Fac Gar Fac Gar Fac Was Fac Gar Fac Gar Fac Was Fac Gar Fac Was Fac Gar Res Gar Res Tes Gar Res Qua Sec Acc Com Ac0 Combat Hostiles Destroyed 611 | . 8 4 8 29 19 . 4 36 7 22 4 1 17 22 10 33 8 4 45 43 2 6 7 28 17 38 3 22 35 9 26 38 36 16 4 Melee 7 | . . . . . 1 . . 2 . . . . . 1 . 1 . . . . . . . . . . . . . . 1 1 . . . Guns 186 | . 7 4 8 20 6 . . 11 1 9 . 1 8 . 1 6 8 4 36 13 2 6 . 6 3 2 . 1 9 . . . 5 9 . Cannons 293 | . . . . . 11 . 3 15 . 5 . . 8 19 9 26 . . 6 21 . . 7 21 5 17 2 20 25 9 19 18 17 6 4 AOE 75 | . 1 . . 9 . . . 7 6 7 4 . . 1 . . . . 3 6 . . . . 2 15 . . . . . 6 8 . . Classes Destroyed 28 | 2 5 . 3 4 1 . 1 . . 2 . 1 1 3 . . . . 1 . . . . 1 1 . . 1 . . . . 1 . . Worker 23 | . 1 1 . 2 . . 2 . 1 . . . 1 . 1 . . . 2 . . . . . 1 . . 1 . 1 1 2 4 2 . Builder 28 | . . . 1 . . 1 . . 3 . . . 2 . 2 . . . 4 . . . . . 4 . . 2 . 1 2 . 6 . . Tunneler 7 | 5 . 1 . . . . . . . . . . . . . . . . . . . . . . 1 . . . . . . . . . . Hauler 17 | . 2 . 5 5 . . 1 . . . . . . . . . 1 . 1 . . . . . 1 . . 1 . . . . . . . Recycler 32 | 1 2 1 . 2 . 5 . . . . . . . . 2 . 1 . 3 . . . . . 3 . 1 . . 2 1 2 2 4 . Mechanic 2 | . . . . 1 . . . . . . . . . . . . . . 1 . . . . . . . . . . . . . . . . Operator 4 | . . . . 1 . . 1 . . . . . . . . . . . 1 . 1 . . . . . . . . . . . . . . Drone 1 | . . . . . . . . . . . . . . . . . . . . . . . . . 1 . . . . . . . . . . Watcher 6 | . 1 . 1 1 . . . . . . 1 . . . . 1 . . 1 . . . . . . . . . . . . . . . . Swarmer 132 | . 6 3 4 7 3 . . 8 2 6 3 . 4 3 1 8 5 . 7 15 . . 2 6 . 21 . . . 1 . 4 8 5 . Cutter 4 | . . . . . . . . . . . . . . . . . . . . . . . . 2 . . . . 2 . . . . . . Saboteur 2 | . . . . . . . . . . . . . . . . . . . 1 . . . . . . . . . . . . 1 . . . Grunt 206 | . 2 . 1 10 9 . 3 22 5 3 . . . 13 4 12 2 . 22 22 . . . 12 5 5 1 7 16 . 9 12 9 . . Brawler 26 | . . . . 5 . . . 2 . 4 . . 1 1 . 3 1 . 2 . . . . 2 . 1 . . 2 . . 2 . . . Duelist 16 | . . . 1 1 2 . . 1 . 1 . . . . 1 . . . 1 . . . . 1 . 1 . . 4 . . 1 1 . . Protector 6 | . . . . 1 . . . . . . . . . . . . . . 1 . . . . . 1 1 . . . . . 2 . . . Researcher 4 | . . . . . . . . . . . . . . . . . . . . . . . . . . . . 1 . . 2 1 . . . Sentry 63 | . . . 2 5 4 . . 3 . 1 1 . 5 1 3 3 . . 2 5 . . 1 4 1 3 . . 6 2 3 3 3 2 . Demolisher 2 | . . . . . . . . . . 1 . . . . . . . . . . . . . . . 1 . . . . . . . . . Specialist 1 | . . . . . . . . . . . . . . 1 . . . . . . . . . . . . . . . . . . . . . Hunter 20 | . . . . . . . 1 . . 2 . . 1 . 1 . . . 2 1 . . 1 . 4 . . . . 1 4 1 1 . . Programmer 90 | . . . . . . . . . . 4 . . 5 1 . 4 . . 7 . 2 . 1 . 5 3 2 14 4 4 11 8 9 6 . Heavy 3 | . . . . . . . . . . . . . 1 . . . . . . . . . 1 . . . . . . 1 . . . . . Behemoth 9 | . . . . . 1 . . . . . . . . . . 1 . . . . . . . 1 . 2 . . 1 . . 1 2 . . Compactor 11 | . . . . . . . . . . . . 1 . . . . . 4 . . . 6 . . . . . . . . . . . . . Quarantine Guard 1 | . . . . . . . . . . . . . . . . . . . . . . . 1 . . . . . . . . . . . . S7 Guard 1 | . . . . . . . . . . . . . . . . . . . . . . . . . . . . . . . . 1 . . . M Guard 2 | . . . . . . . . . . . . . . . . . . . . . . . . . . . . . . . . . . 2 . Enhanced Grunt 2 | . . . . . . . . . . . . . . . . . . . . . . . . . . . . . . . . . . . 2 Enhanced Hunter 1 | . . . . . . . . . . . . . . . . . . . . . . . . . . . . . . . . . . . 1 CL-0N3 Special 1 | . . . . . . . . . . . . . . . . . . . . . . . . . . . . . . . . . 1 . . Combat Programmer 3 | . . . . . . . . . . . . . . . . . . . . . . . . . . . . . . . . . 1 2 . Striker 1 | . . . . . . . . . . . . . . 1 . . . . . . . . . . . . . . . . . . . . . Executioner 5 | . . . . . . . . . . . . . . 1 . 2 . . . . . . . . . . . . . . . 2 . . . Protovariant G 1 | . . . . . . . . . . . . . . . . . . . . . . . . . . . . 1 . . . . . . . Thug 1 | . . . . 1 . . . . . . . . . . . . . . . . . . . . . . . . . . . . . . . Martyr 2 | . . . . . . . . . . . . . . . . . . . . . . 2 . . . . . . . . . . . . . Best Kill Streak 16 | 2 5 3 5 15 5 2 3 10 5 3 3 1 3 8 5 7 4 2 14 7 2 3 2 5 16 10 2 6 4 5 6 10 8 4 3 Combat Bots Only 12 | . 4 3 4 12 5 . 2 10 3 3 3 1 3 8 3 7 4 2 11 7 2 3 2 5 10 10 2 6 4 3 6 10 7 4 3 Max Kills in Single Turn 6 | 1 2 1 2 4 1 1 1 3 2 3 3 1 2 1 1 1 3 1 5 3 1 1 1 2 3 4 1 2 1 2 1 6 3 1 1 Gunslinging 1 | . . . . . . . . . . . . . . . . . . . 1 . . . . 1 . . . . . . . . . . . Exploded 4 | . 1 . . 4 . . . 3 2 3 3 . . 1 . . . . 2 3 . . . . 1 4 . . . . . 3 2 . . Melee 1 | . . . . . 1 . . 1 . . . . . 1 . 1 . . . . . . . . . . . . . . 1 1 . . . Uniques/NPCs Destroyed 5 | . . 1 . . . . . . . . . . . . . . . . . . . . . . . . . . . . . . 1 2 1 YI-UF0 (-10/Mines) CL-0N3 (-1/Access) MAIN.C Shell (-1/Command) MAIN.C (-1/Command) A8 (-1/Access_0) Combat | -11 -10 -10 -9 -9 -9 -9 -7 -7 -7 -7 -6 -6 -6 -6 -6 -6 -5 -5 -5 -5 -4 -4 -4 -4 -3 -3 -3 -3 -3 -2 -2 -2 -1 -1 -1 -------- Run | Yrd Mat Min Mat Sto Gar Rec Fac Gar Fac Gar Fac Was Fac Gar Fac Gar Fac Was Fac Gar Fac Was Fac Gar Res Gar Res Tes Gar Res Qua Sec Acc Com Ac0 Hostile Shots Fired 3711 | . 31 36 20 56 140 . 22 307 13 240 5 . 205 100 69 152 12 . 251 138 8 . 10 139 61 126 12 70 208 74 165 193 443 134 271 Missed 1085 | . 8 15 7 12 24 . 9 89 3 80 3 . 70 29 18 36 6 . 84 32 3 . 2 50 19 26 4 16 59 27 33 59 107 29 126 Hits 2626 | . 23 21 13 44 116 . 13 218 10 160 2 . 135 71 51 116 6 . 167 106 5 . 8 89 42 100 8 54 149 47 132 134 336 105 145 Melee 68 | . . . . . 5 . . 11 . 1 . . 3 3 8 . . . 2 . . . . 3 . 6 . . 7 . 1 8 . . 10 Projectile 2558 | . 23 21 13 44 111 . 13 207 10 159 2 . 132 68 43 116 6 . 165 106 5 . 8 86 42 94 8 54 142 47 131 126 336 105 135 AOE 38 | . . 21 . . . . . . . 11 . . 1 . . . . . . . . . . 4 . . . . . . . . . 1 . Critical Strikes 121 | . . . . 2 9 . . 3 1 2 . . 2 4 2 5 . . 4 3 . . . 5 4 2 . 6 10 3 11 12 15 7 9 Actively Blocked 26 | . . . . . 1 . . . . . . . . . . . . . . . . . . . . 2 . . . . . 2 10 2 9 Part Disruptions 16 | . . . . . . . . . . . . . . . . . . . 4 . 1 . . . . . . . . . 1 1 1 5 3 Damage Taken 39897 | . 270 679 97 409 2484 . 148 1654 276 1508 70 31 1262 1371 695 1799 69 . 2085 2129 51 . 103 1019 672 1374 108 711 1649 847 1841 2562 5740 3144 3040 Core 4150 | . 40 98 7 33 350 . . 120 . 79 . 1 146 141 36 157 6 . 191 146 . . . 38 51 59 . 44 67 42 130 384 1395 152 237 Absorbed by Shields 17972 | . . . 39 159 248 . 52 923 24 542 8 16 304 212 . 13 23 . 887 . 54 . 106 1062 263 1103 69 477 1722 848 1239 1548 2969 1192 1870 Reduced by Siege Mode 1401 | . . . . . . . . . . . . . 18 139 44 233 . . . 173 . . . 11 59 64 . 53 50 46 112 31 178 190 . Redirected to Shielding 12 | . . . . . 12 . . . . . . . . . . . . . . . . . . . . . . . . . . . . . . Regen/Repaired (Parts) 6733 | . . . . . . . . . . 374 . . 15 . . . . . . . . 649 21 269 . . . . 472 218 899 1099 1972 339 406 Core Remaining (%) 59 | 100 . 44 . . . 2 . . . 71 . . . . . 43 . . . 65 . . . 96 . . . . 83 . . 67 . . 23 Volleys Fired 2320 | 16 41 25 35 64 67 3 19 73 16 102 9 21 53 86 32 99 12 24 130 144 9 36 15 110 47 106 50 50 130 85 108 173 172 114 44 Largest 3 | 2 2 2 3 3 3 2 2 3 3 3 3 3 3 3 2 3 3 3 3 3 3 3 3 3 3 3 2 3 3 3 1 1 3 2 1 Hottest 346 | 40 100 40 100 100 134 134 134 170 79 136 136 84 213 180 70 160 116 116 226 320 243 282 265 265 260 346 233 339 276 257 120 150 275 280 180 Shots Fired 4225 | 32 76 50 93 160 149 5 26 164 20 252 16 50 133 221 35 120 33 69 285 243 27 106 36 277 93 195 54 111 277 121 106 168 221 157 44 Gun 1901 | 32 70 50 87 142 96 . . 84 6 195 12 44 77 . 3 36 32 69 241 90 27 101 . 127 54 47 . 5 80 . . . 42 52 . Cannon 2032 | . . . . 4 42 5 26 71 . 36 1 . 46 217 32 80 . . 27 150 . 4 35 142 25 139 33 99 184 101 86 145 158 100 44 Launcher 67 | . . . . 5 . . . 7 8 4 2 . 1 . . . . . . 2 . . . . 10 8 . . . . . 6 14 . . Special 225 | . 6 . 6 9 11 . . 2 6 17 1 6 9 4 . 4 1 . 17 1 . 1 1 8 4 1 21 7 13 20 20 17 7 5 . Kinetic 1822 | 32 70 50 87 146 116 2 10 84 6 195 12 44 85 . 32 108 32 69 231 . . . . 127 54 47 . 5 80 . . . 42 53 3 Thermal 1943 | . 6 . 6 9 33 3 16 71 . 36 1 . 38 217 3 8 . . 20 217 27 105 35 142 25 139 26 98 184 96 40 122 152 68 . Explosive 36 | . . . . 5 . . . 7 8 4 2 . 1 . . . . . . 1 . . . . . 8 . . . . . . . . . Electromagnetic 170 | . . . . . . . . . . . . . . . . . . . 17 24 . . . . 10 . 7 1 . 5 46 29 14 17 . Slashing 61 | . . . . . . . . . . . . . . . . . . . . . . . . . . . . . . . . . 6 14 41 Robot Hit Streak 58 | 6 10 5 6 16 18 . 10 15 13 40 9 16 13 18 20 17 14 9 15 24 22 38 7 25 19 47 49 23 31 24 25 9 54 58 11 Robot Miss Streak 8 | 2 4 4 5 3 2 . 4 2 1 4 . 3 5 3 2 6 1 3 7 4 1 1 2 2 2 3 4 2 3 2 3 6 6 6 8 Penetration Max 3 | . . . . . . . . 1 . 1 . . 1 . . 1 1 . 3 . . . . 1 1 . . . 2 . . . 1 1 1 Secondary Targets 28 | . . 1 1 4 1 . . 5 . . . 1 1 . . 1 2 1 6 2 . 1 . 1 . . . . . . . . . . . Max Gunslinging Chain 1 | . . 1 1 1 1 . . 1 . . . 1 1 . . 1 1 1 1 1 . 1 . 1 . . . . . . . . . . . Shots Hit Robots 2744 | 19 42 29 47 102 118 7 22 123 12 189 1 40 75 136 28 82 23 48 167 136 14 94 21 174 59 131 28 51 188 74 95 83 134 110 42 Core Hits 1579 | 9 23 11 24 64 35 3 8 68 25 73 4 5 34 58 13 42 19 17 105 79 7 27 12 87 56 72 4 37 78 25 37 95 141 85 97 Critical Kills 54 | . . 1 . . 1 . . 2 . 2 . . 1 2 . 5 3 1 12 2 . . . 1 . 4 1 3 8 . . 2 . 3 . Critical Parts Destroyed 44 | . . . . . 1 . . 1 . 3 . . 1 . . 1 . 2 15 . . . . . . . . 1 17 . . . 1 1 . Critical Strikes 137 | . . 1 . . 8 . 1 3 . 5 . 1 2 2 4 12 3 9 28 3 . 1 . 1 1 4 1 4 26 . 2 2 1 7 5 Burn 2 | . . . . . . . . . . . . . . . . . . . . 1 . 1 . . . . . . . . . . . . . Meltdown 17 | . . . . . 1 . . . . 1 . . 1 2 . . . . . 2 . . . 1 . 3 1 1 1 . . 2 . 1 . Destroy 89 | . . 1 . . 1 . . 1 . 4 . 1 1 . . 7 3 9 27 . . . . . 1 1 . 3 25 . . . 1 3 . Blast 15 | . . . . . 2 . 1 . . . . . . . 4 5 . . . . . . . . . . . . . . . . . 2 1 Corrupt 3 | . . . . . . . . . . . . . . . . . . . . . . . . . . . . . . . 2 . . 1 . Smash 3 | . . . . . . . . 2 . . . . . . . . . . 1 . . . . . . . . . . . . . . . . Sever 8 | . . . . . 4 . . . . . . . . . . . . . . . . . . . . . . . . . . . . . 4 Melee Attacks 323 | . . . . . 38 13 9 53 . 46 3 . 13 . 1 28 2 . 10 . . . . . . . . . . . 14 17 42 29 5 Impact 161 | . . . . . . . 5 53 . 46 3 . 13 . 1 28 2 . 10 . . . . . . . . . . . . . . . . Slashing 162 | . . . . . 38 13 4 . . . . . . . . . . . . . . . . . . . . . . . 14 17 42 29 5 Piercing . | . . . . . . . . . . . . . . . . . . . . . . . . . . . . . . . . . . . . Sneak Attacks 29 | . . . . . 1 7 3 . . . . . . . . . . . 2 . . . . . . . . . . . 7 2 4 3 . Combat Hostiles . | . . . . . . . . . . . . . . . . . . . . . . . . . . . . . . . . . . . . Follow-up Attacks . | . . . . . . . . . . . . . . . . . . . . . . . . . . . . . . . . . . . . Damage Inflicted 102832 | 209 596 283 603 2445 2943 432 892 3860 1122 4236 644 748 1842 3925 1936 4677 631 1136 5679 5306 355 2443 901 5595 3353 7322 436 2552 5237 2642 4482 5375 7414 7263 3317 Guns 27780 | 209 475 283 578 1511 1083 . . 1221 94 3108 . 748 1107 . 16 351 631 1136 3919 1041 355 2275 . 1957 1280 1181 . 27 642 . . . 1069 1483 . Cannons 54951 | . . . . 21 693 . 517 1423 . 502 . . 693 3914 1801 4321 . . 483 3846 . 168 886 3638 706 3573 415 2476 4580 2632 3189 2895 4108 4154 3317 Explosions 13440 | . 98 . . 908 . . . 941 1028 626 644 . . . 78 . . . 967 419 . . . . 1350 2568 . . . . 93 1972 1721 27 . Melee 6334 | . . . . . 1167 432 375 273 . . . . . . 41 . . . 242 . . . . . . . . . . . 1200 489 516 1599 . Ramming 327 | . 23 . 25 5 . . . 2 . . . . 42 11 . 5 . . 68 . . . 15 . 17 . 21 49 15 10 . 19 . . . Kinetic 32294 | 209 475 283 578 1532 1487 . 229 1221 94 3108 . 748 1179 . 1737 4417 631 1136 3808 . . . . 1957 1280 1181 . 27 642 . . . 1069 3017 249 Thermal 43342 | . . . . . 289 . 288 1423 . 502 304 . 621 3914 158 255 . . 1057 4270 355 2443 886 3638 769 3573 156 2431 4580 2459 1668 2574 3771 958 . Explosive 6604 | . . . . 908 . . . 941 820 626 340 . . . . . . . 163 238 . . . . . 2568 . . . . . . . . . Electromagnetic 8934 | . 98 . . . . . . . 208 . . . . . . . . . 341 798 . . . . 1287 . 259 45 . 173 1614 2293 1622 196 . Impact 814 | . . . . . . . 258 273 . . . . . . 41 . . . 242 . . . . . . . . . . . . . . . . Slashing 10517 | . . . . . 1167 432 117 . . . . . . . . . . . . . . . . . . . . . . . 1200 489 952 3092 3068 Piercing . | . . . . . . . . . . . . . . . . . . . . . . . . . . . . . . . . . . . . Highest Corruption 38 | . 2 2 . . . . . 5 . . . 17 19 8 8 8 . 15 21 22 3 3 3 3 3 3 3 13 16 2 23 38 24 36 2 Average Corruption 11 | . 2 2 . . . . . 4 . . . 7 7 8 8 8 . 10 16 21 2 3 3 3 2 3 3 7 15 2 12 30 13 21 2 Corruption Purged 109 | . . . . . . . . 5 . . . 5 17 . . . . . . . . . . . . . . . . . . . . 82 . Corruption Blocked . | . . . . . . . . . . . . . . . . . . . . . . . . . . . . . . . . . . . . Effects 1027 | . 10 8 . . . . . 12 . . . 9 69 46 10 57 . 10 71 111 2 25 15 46 8 19 15 51 89 10 49 94 79 112 . Message Errors 211 | . 2 2 . . . . . 2 . . . 1 13 9 2 10 . 3 16 23 . 7 4 11 3 5 2 11 12 1 13 23 13 23 . Matter Fused 243 | . . 1 . . . . . 6 . . . 2 23 9 4 12 . 2 18 26 1 5 2 16 2 7 3 13 20 3 8 16 21 23 . Heat Flow Errors 120 | . 1 . . . . . . . . . . 2 7 8 . 8 . 1 8 13 1 6 1 6 . 1 1 3 11 1 8 9 7 17 . Energy Discharges 122 | . 3 1 . . . . . 1 . . . 1 7 4 . 9 . . 5 12 . 3 3 4 . . 3 6 16 . 5 10 11 18 . Parts Rejected 12 | . . . . . . . . 1 . . . 1 1 . . . . . 2 1 . . . . . . . 2 1 . . 1 2 . . Parts Fused 11 | . 1 . . . . . . . . . . . 1 . . 1 . . . 4 . . . . . 1 1 . . 1 1 . . . . Data Loss (minor) 129 | . 3 3 . . . . . 1 . . . 1 9 7 2 7 . . 7 12 . 1 1 5 1 3 4 7 9 . 6 17 11 12 . Data Loss (major) 38 | . . 1 . . . . . 1 . . . . 3 3 . 6 . 1 1 4 . 1 . 1 . 1 1 2 1 . 1 5 3 2 . Misfires 35 | . . . . . . . . . . . . . 4 . 1 1 . . 4 1 . 1 1 1 . . . 3 4 2 2 1 5 4 . Alerts 25 | . . . . . . . . . . . . . 1 3 . 1 . . . 4 . . 2 1 1 . . 2 2 . 1 4 2 1 . Misdirections 9 | . . . . . . . . . . . . . . . . . . . 2 1 . . . . . . . . . . . 2 3 1 . Weapon Failures 72 | . . . . . . . . . . . . 1 . 3 1 2 . 3 8 10 . 1 1 1 1 1 . 2 13 2 4 6 1 11 . Overload Shots 25 | . . . . . . . . . . . . . . 1 . . . . . . . . . . . . . . . . . 15 6 3 . Effects 3 | . . . . . . . . . . . . . . . . . . . . . . . . . . . . . . . . 3 . . . Energy Bleed 2 | . . . . . . . . . . . . . . . . . . . . . . . . . . . . . . . . 2 . . . Heat Surge 1 | . . . . . . . . . . . . . . . . . . . . . . . . . . . . . . . . 1 . . . Overflow Damage 4009 | . . . . 55 40 118 156 113 54 19 42 . 1 2 207 371 . . 460 127 . . 14 55 128 275 14 58 96 106 408 15 385 690 . Projectiles 1560 | . . . . . 14 . 10 19 . 11 . . 1 2 191 371 . . 11 67 . . 14 55 111 105 14 58 96 106 39 15 68 182 . Explosions 786 | . . . . 55 . . . 31 54 8 42 . . . . . . . 328 60 . . . . 17 170 . . . . . . 21 . . Melee 1663 | . . . . . 26 118 146 63 . . . . . . 16 . . . 121 . . . . . . . . . . . 369 . 296 508 . Knockbacks 34 | . . . . . 4 . 4 . . . . . . . 5 6 . . 1 . . . . . . . . . . . . . . 11 3 Impact 2 | . . . . . . . 1 . . . . . . . . . . . 1 . . . . . . . . . . . . . . . . Kinetic 31 | . . . . . 4 . 3 . . . . . . . 5 6 . . . . . . . . . . . . . . . . . 10 3 Secondary 1 | . . . . . . . . . . . . . . . . . . . . . . . . . . . . . . . . . . 1 . Self-Inflicted Damage 512 | . 35 . . . . . . 21 122 56 . . . . . . . . 20 144 . . . . . . . . . . . . 15 99 . Shots 13 | . 1 . . . . . . 1 2 1 . . . . . . . . 1 5 . . . . . . . . . . . . 1 1 . Rammed 23 | . 6 . 3 1 . . . 1 . . . . 4 . . . . . . . . . 1 . 1 . 1 2 1 1 . 1 . . . Targets Rammed 30 | . 6 1 3 1 . . . 1 . . . . 4 1 . 1 . . 4 . . . 1 . 1 . 1 2 1 1 . 1 . . . Kicked 4 | . . . . . . . . . . . . . . . . . . . 4 . . . . . . . . . . . . . . . . Crushed 3 | . . 1 . . . . . . . . . . . 1 . 1 . . . . . . . . . . . . . . . . . . . Highest Temperature 390 | . 129 12 32 54 390 210 198 332 80 310 . 245 240 297 22 327 24 226 298 256 98 176 92 174 . 287 289 289 279 136 242 322 363 320 198 Average Temperature 64 | . 22 4 11 11 72 107 77 98 23 105 . 103 66 88 16 75 8 70 81 54 11 58 71 70 . 81 79 40 52 44 53 102 58 53 91 Received Heat Transfer 5036 | . 57 9 28 158 697 . 62 593 63 145 . 3 127 317 39 581 . . 346 660 . . . 205 69 43 . 89 236 16 44 135 223 91 . Effects 13 | . . . . . . . . 1 . . . . . . . 2 . . . . . . . . . 3 1 1 . . . 1 1 3 . Energy Bleed 3 | . . . . . . . . 1 . . . . . . . . . . . . . . . . . . 1 . . . . 1 . . . Interference 10 | . . . . . . . . . . . . . . . . 2 . . . . . . . . . 3 . 1 . . . . 1 3 . Siege Activations 90 | . . . . . . . . . . 1 . . 5 9 2 13 . . . 9 . 1 . 2 4 4 . 4 8 3 5 4 12 4 . Total Turns 1376 | . . . . . . . . . . 4 . . 39 249 32 134 . . . 144 . 8 . 71 42 60 . 43 107 58 74 37 215 59 . Longest Duration 96 | . . . . . . . . . . 4 . . 12 96 17 27 . . . 51 . 8 . 57 13 24 . 23 21 48 29 22 50 27 . Martial Activations . | . . . . . . . . . . . . . . . . . . . . . . . . . . . . . . . . . . . . Shielding Activations . | . . . . . . . . . . . . . . . . . . . . . . . . . . . . . . . . . . . . Robots Disrupted 3 | . . . . . . . . . . . . . . . . . . . . 1 . . . . 1 . . . . . . . 1 . . Combat Hostiles 3 | . . . . . . . . . . . . . . . . . . . . 1 . . . . 1 . . . . . . . 1 . . Robots Corrupted 37 | . . . . . . . 1 1 . . . . . . . . . . 1 2 . . . . 7 . . . . . 6 11 6 2 . Combat Hostiles 34 | . . . . . . . 1 1 . . . . . . . . . . . 2 . . . . 7 . . . . . 6 11 6 . . Parts Fried 90 | . . . . . . . 1 1 . . . . . . . . . . 6 6 . . . . 16 . 4 . . 1 14 23 15 3 . Impact Corruptions 9 | . . . . . . . 3 3 . . . . . . 1 . . . 2 . . . . . . . . . . . . . . . . Robots Melted 20 | . . . . . 1 . . . . 1 . . 1 3 . . . . . 2 . . . 1 . 5 1 1 1 . . 2 . 1 . Combat Hostiles 16 | . . . . . 1 . . . . 1 . . 1 1 . . . . . 1 . . . 1 . 4 1 1 1 . . 2 . 1 . Parts Melted 110 | . . . 2 . 1 . . 10 . 2 1 . 2 21 . 1 . . . 13 3 1 2 6 3 12 1 9 7 2 . 9 1 1 . Heat Transferred 43645 | . . . . . 450 . 450 2423 . 873 200 . 911 5505 211 348 . . 722 4688 481 3737 814 3341 642 3069 111 2035 4013 2109 1160 2213 2447 692 . Parts Sabotaged 4 | . . . . . . . . . . . . . . . . . . . 4 . . . . . . . . . . . . . . . . Parts Stolen . | . . . . . . . . . . . . . . . . . . . . . . . . . . . . . . . . . . . . Parts Stripped . | . . . . . . . . . . . . . . . . . . . . . . . . . . . . . . . . . . . . Power Chain Reactions 14 | . . . . . . . . . . . . . . . . . . . . 2 . . . . 2 . . . . . 1 4 4 1 . Alert | -11 -10 -10 -9 -9 -9 -9 -7 -7 -7 -7 -6 -6 -6 -6 -6 -6 -5 -5 -5 -5 -4 -4 -4 -4 -3 -3 -3 -3 -3 -2 -2 -2 -1 -1 -1 ------- Run | Yrd Mat Min Mat Sto Gar Rec Fac Gar Fac Gar Fac Was Fac Gar Fac Gar Fac Was Fac Gar Fac Was Fac Gar Res Gar Res Tes Gar Res Qua Sec Acc Com Ac0 Maximum Alert Level 5 | . 1 . 1 3 4 2 2 4 3 5 4 2 1 3 3 5 3 1 3 5 4 2 1 5 4 5 4 1 5 4 3 5 5 5 . Low Security (%) 19 | 100 96 100 47 52 . . . . . . . . 95 4 . . . . 15 . . 72 34 4 . . . 89 3 . 5 . . . . Level 1 11 | . 3 . 52 21 . . 96 17 . . . 53 4 34 . . . 100 21 . . 26 65 7 . . 46 10 4 . 51 8 . . . Level 2 9 | . . . . 2 2 100 3 32 . . . 46 . 16 30 5 . . 51 3 . 1 . 24 . . 1 . 10 . 27 12 . . . Level 3 16 | . . . . 23 62 . . 17 100 21 . . . 44 69 22 100 . 11 15 . . . 22 50 15 . . 23 14 15 12 22 . . Level 4 22 | . . . . . 34 . . 32 . 28 100 . . . . 40 . . . 40 100 . . 30 49 10 51 . 20 85 . 34 43 25 . Level 5 21 | . . . . . . . . . . 48 . . . . . 31 . . . 40 . . . 10 . 74 . . 38 . . 33 33 74 . High Security . | . . . . . . . . . . . . . . . . . . . . . . . . . . . . . . . . . . . . Max Security . | . . . . . . . . . . . . . . . . . . . . . . . . . . . . . . . . . . . . Peak Influence 2370 | 5 224 104 382 924 1471 691 404 1405 974 2355 1381 472 224 961 925 1795 1071 373 923 2370 1243 402 347 1813 1343 2367 1331 231 1972 1475 849 1984 2123 1436 . Initial 1358 | . . . 35 136 589 661 403 201 737 648 1236 472 176 152 504 633 942 367 206 640 1243 402 . 164 1019 942 1331 171 155 1109 807 210 1179 1358 . Average 857 | 1 57 10 183 340 1036 579 349 830 839 1523 1233 369 74 597 747 1315 1020 339 413 1489 1186 117 188 921 1142 1816 818 126 1236 1209 432 1294 1438 1365 . Influence Increases 29152 | 30 367 189 520 1219 1042 158 371 1264 387 1747 379 . 620 849 541 1202 217 18 1826 1770 106 . 647 1769 540 1515 145 741 1927 873 895 2599 1782 783 114 Destroy 0b10 Robot/C 13780 | . 160 140 300 700 400 . 80 740 140 640 100 . 340 460 220 680 160 . 960 860 40 . 260 800 300 860 60 460 960 380 600 1020 680 280 . Destroy 0b10 Robot/NC 900 | 30 30 15 50 70 15 30 20 5 20 35 5 . 15 25 40 10 10 . 70 30 5 . . 35 60 30 5 20 . 45 20 60 60 35 . Destroy Leader 1886 | . 36 20 82 172 30 . 22 30 30 50 32 . 120 40 40 50 22 . 174 20 10 . 50 50 72 70 10 62 70 112 60 170 130 50 . Allied During Kill 1704 | . . 14 44 50 4 . . 2 17 194 95 . . 3 19 1 . . 22 . . . 281 106 3 119 . . 170 141 47 346 4 22 . Successful Hack 475 | . 42 . 7 18 12 . 26 . . 16 . . 65 26 . 28 . . 19 16 34 . . 30 . 14 . 16 . 54 . . 52 . . Select Force Hacks 150 | . 30 . . . . 120 . . . . . . . . . . . . . . . . . . . . . . . . . . . . . Disable Machine 1695 | . 30 . 30 135 . . 15 . 150 . 75 . 30 30 150 30 15 . 300 30 15 . 30 . 15 15 15 135 . . 30 240 90 60 30 Anti-Garrison Action 3750 | . . . . . 450 . . 350 . 700 . . . 200 . 300 . . . 550 . . . 550 . 100 . . 550 . . . . . . Destroy Structure 3337 | . 9 . 7 59 56 8 8 107 30 112 57 . 35 65 72 43 10 18 176 174 2 . 26 198 60 307 40 48 117 96 78 613 286 336 84 Advance Influence 200 | . . . . . . . 200 . . . . . . . . . . . . . . . . . . . . . . . . . . . . Partial Spotted 15 | . . . . . . . . . . . . . . . . . . . . . . . . . . . . . . . 15 . . . . Lose Combat Pursuer 1260 | . 30 . . 15 75 . . 30 . . 15 . 15 . . 60 . . 105 90 . . . . 30 . 15 . 60 45 45 150 480 . . Influence Decreases 29141 | 30 367 97 288 636 478 1144 568 147 866 318 1385 1097 654 106 597 312 963 772 1206 315 1325 1151 412 191 1096 405 2208 838 162 1409 1957 1007 1625 1233 1776 Entered New Map 16612 | . . . 57 188 318 810 282 87 668 278 1119 877 76 66 457 272 853 682 89 275 1127 749 . 71 794 315 1036 133 52 863 629 164 787 765 1673 Time Decay 8246 | 30 310 97 211 428 . 334 286 . 198 . 246 120 548 . 120 . 110 90 494 . 198 382 212 . 302 . 362 545 . 386 518 583 678 458 . Lost Part 493 | . . . . . 140 . . 40 . 20 . . 10 20 . 20 . . 30 40 . . . . . 10 . . 10 . 10 30 . 10 103 Lost Ally 1350 | . . . 20 20 20 . . 20 . 20 20 100 20 20 20 20 . . 60 . . 20 200 120 . 80 10 10 100 160 50 80 160 . . Purge Threat 2440 | . 57 . . . . . . . . . . . . . . . . . 533 . . . . . . . 800 150 . . 750 150 . . . Squads Dispatched 105 | . 1 1 . 10 . . 2 . 4 . . . 5 . 2 . . . 16 . 2 . 2 . 5 . 4 5 . 2 7 17 15 5 . Investigation 5 | . 1 . . . . . . . . . . . . . . . . . 1 . . . . . . . 1 . . . 1 . 1 . . Extermination 33 | . . . . . . . . . . . . . 4 . . . . . 3 . 1 . 1 . 1 . 1 4 . 1 4 4 6 3 . Reinforcement 25 | . . . . 4 . . 2 . 2 . . . 1 . 1 . . . 6 . . . 1 . 1 . . 1 . 1 1 4 . . . Assault 35 | . . 1 . 3 . . . . 2 . . . . . . . . . 3 . 1 . . . 3 . 2 . . . 1 9 8 2 . Garrison 7 | . . . . 3 . . . . . . . . . . 1 . . . 3 . . . . . . . . . . . . . . . . Intercept . | . . . . . . . . . . . . . . . . . . . . . . . . . . . . . . . . . . . . Searches Triggered . | . . . . . . . . . . . . . . . . . . . . . . . . . . . . . . . . . . . . Unchained Authorized 3 | . . . . . . . . . . . . . . . . . . . . . 1 . 1 . . . . . . . . . 1 . . Construction Impeded 7 | . . . . 1 . . . . 2 . . . . . 1 . . . 3 . . . . . . . . . . . . . . . . Haulers Reinforced 3 | . . . . . . . 1 . . . . . . . . . . . . . . . . . 1 . . 1 . . . . . . . Active Scanning Responses . | . . . . . . . . . . . . . . . . . . . . . . . . . . . . . . . . . . . . Cargo Convoy Interrupts 1 | . . . . . . . . . . . . . . . . . . . 1 . . . . . . . . . . . . . . . . Stealth | -11 -10 -10 -9 -9 -9 -9 -7 -7 -7 -7 -6 -6 -6 -6 -6 -6 -5 -5 -5 -5 -4 -4 -4 -4 -3 -3 -3 -3 -3 -2 -2 -2 -1 -1 -1 --------- Run | Yrd Mat Min Mat Sto Gar Rec Fac Gar Fac Gar Fac Was Fac Gar Fac Gar Fac Was Fac Gar Fac Was Fac Gar Res Gar Res Tes Gar Res Qua Sec Acc Com Ac0 Distress Signals 37 | . 2 . 2 2 . . 1 . . . . . . . . . . . 1 . . . 1 . 1 . . . . 3 . . 2 22 . Communications Jammed 51 | . . . . . . . . . . . . . . . . . . . . . . . . . 20 1 . 30 . . . . . . . Distress Signals 45 | . . . . . . . . . . . . . . . . . . . . . . . . . 14 1 . 30 . . . . . . . Times Spotted 979 | . 20 8 17 45 22 . 7 36 6 33 4 6 28 28 13 36 12 5 75 46 4 6 13 47 25 42 6 31 57 33 38 81 102 23 24 Peak Tracking Total 17 | . 5 4 6 7 3 . 2 8 3 6 4 3 4 4 3 7 5 3 12 9 1 3 3 8 7 5 1 4 12 4 6 10 17 4 12 Tactical Retreats 51 | . 2 . . 1 3 . . 1 . . 1 . 1 . . 3 . . 4 3 . . . . 2 . 1 . 4 2 2 8 13 . . Traps | -11 -10 -10 -9 -9 -9 -9 -7 -7 -7 -7 -6 -6 -6 -6 -6 -6 -5 -5 -5 -5 -4 -4 -4 -4 -3 -3 -3 -3 -3 -2 -2 -2 -1 -1 -1 ------- Run | Yrd Mat Min Mat Sto Gar Rec Fac Gar Fac Gar Fac Was Fac Gar Fac Gar Fac Was Fac Gar Fac Was Fac Gar Res Gar Res Tes Gar Res Qua Sec Acc Com Ac0 Traps Triggered 70 | . 1 . . . 9 . . 10 2 4 2 . 2 3 1 1 1 . 1 3 1 . . 5 2 4 . . 7 1 3 1 2 4 . Indirectly 1 | . . . . . . . . . 1 . . . . . . . . . . . . . . . . . . . . . . . . . . Trap Hack Attempts . | . . . . . . . . . . . . . . . . . . . . . . . . . . . . . . . . . . . . Triggered . | . . . . . . . . . . . . . . . . . . . . . . . . . . . . . . . . . . . . Disarmed . | . . . . . . . . . . . . . . . . . . . . . . . . . . . . . . . . . . . . Reprogrammed . | . . . . . . . . . . . . . . . . . . . . . . . . . . . . . . . . . . . . Reused . | . . . . . . . . . . . . . . . . . . . . . . . . . . . . . . . . . . . . Traps Extracted . | . . . . . . . . . . . . . . . . . . . . . . . . . . . . . . . . . . . . Installed . | . . . . . . . . . . . . . . . . . . . . . . . . . . . . . . . . . . . . Triggered . | . . . . . . . . . . . . . . . . . . . . . . . . . . . . . . . . . . . . Machines | -11 -10 -10 -9 -9 -9 -9 -7 -7 -7 -7 -6 -6 -6 -6 -6 -6 -5 -5 -5 -5 -4 -4 -4 -4 -3 -3 -3 -3 -3 -2 -2 -2 -1 -1 -1 ---------- Run | Yrd Mat Min Mat Sto Gar Rec Fac Gar Fac Gar Fac Was Fac Gar Fac Gar Fac Was Fac Gar Fac Was Fac Gar Res Gar Res Tes Gar Res Qua Sec Acc Com Ac0 Machines Disabled 166 | . 2 . 2 9 4 . 1 5 10 7 5 . 2 6 10 7 1 . 20 8 1 . 2 6 1 7 1 10 7 . 2 18 6 4 2 Max in Single Turn 10 | . 2 . . 2 1 . 1 1 4 1 5 . 1 1 3 1 1 . 10 2 1 . 1 2 1 1 1 1 1 . 1 1 1 1 1 Garrison Access 8 | . . . . . . . . . . . 1 . 1 . . . 1 . . . . . . . 1 . . . . 1 . . 3 . . Garrison Relay 36 | . . . . . 2 . . 5 . 6 . . . 2 . 3 . . . 5 . . . 4 . 2 . . 7 . . . . . . Phase Generator 2 | . . . . . 1 . . . . . . . . . . . . . . . . . . 1 . . . . . . . . . . . Machines Repaired . | . . . . . . . . . . . . . . . . . . . . . . . . . . . . . . . . . . . . Machines Dismantled . | . . . . . . . . . . . . . . . . . . . . . . . . . . . . . . . . . . . . Machines Sabotaged . | . . . . . . . . . . . . . . . . . . . . . . . . . . . . . . . . . . . . Overloaded Fab Kills . | . . . . . . . . . . . . . . . . . . . . . . . . . . . . . . . . . . . . Hacking | -11 -10 -10 -9 -9 -9 -9 -7 -7 -7 -7 -6 -6 -6 -6 -6 -6 -5 -5 -5 -5 -4 -4 -4 -4 -3 -3 -3 -3 -3 -2 -2 -2 -1 -1 -1 --------- Run | Yrd Mat Min Mat Sto Gar Rec Fac Gar Fac Gar Fac Was Fac Gar Fac Gar Fac Was Fac Gar Fac Was Fac Gar Res Gar Res Tes Gar Res Qua Sec Acc Com Ac0 Machines Accessed 126 | . 7 . 3 8 4 6 5 1 2 3 1 . 14 2 2 3 1 . 8 2 2 . 1 3 3 1 2 9 1 4 7 7 13 1 . Terminals 84 | . 6 . 2 6 4 2 3 1 . 3 . . 8 2 1 3 . . 4 2 2 . . 3 . 1 2 4 1 2 7 6 8 1 . Fabricators 7 | . . . . . . . . . 1 . . . 3 . . . . . 1 . . . . . 1 . . 1 . . . . . . . Repair Stations 1 | . . . . . . . . . . . . . . . . . . . 1 . . . . . . . . . . . . . . . . Recycling Units 8 | . 1 . . 1 . 4 . . . . . . 1 . . . . . 1 . . . . . . . . . . . . . . . . Scanalyzers 9 | . . . 1 . . . 1 . . . . . . . . . . . . . . . . . . . . 3 . 1 . 1 2 . . Garrison Access 17 | . . . . 1 . . 1 . 1 . 1 . 2 . 1 . 1 . 1 . . . 1 . 2 . . 1 . 1 . . 3 . . Total Hacks 269 | . 20 . 12 22 11 10 11 3 4 3 1 . 36 3 5 7 1 . 19 3 8 . 1 5 5 4 5 14 1 9 10 11 24 1 . Successful 116 | . 10 . 4 11 3 6 3 . 1 2 1 . 16 2 3 2 1 . 8 1 5 . 1 3 2 1 1 8 . 7 1 2 10 1 . Failed 152 | . 10 . 8 11 8 4 8 3 3 1 . . 20 1 2 5 . . 11 2 3 . . 2 3 3 4 5 1 2 9 9 14 . . Catastrophic 34 | . 1 . 1 1 2 3 2 . . . . . 2 . . 2 . . 2 1 1 . . 1 . . . 1 1 1 5 3 4 . . Database Lockouts 1 | . . . . . . . . . . . . . . . . . . . . . . . . . . . . 1 . . . . . . . Manual 82 | . 13 . 7 10 . 6 1 . 1 . . . 5 . 4 . . . 12 . 4 . . . . . 4 4 . . 6 4 1 . . Terminals 190 | . 18 . 10 16 11 2 7 3 . 3 . . 23 3 4 7 . . 12 3 8 . . 5 . 4 5 8 1 3 10 9 14 1 . Fabricators 20 | . . . . . . . . . 3 . . . 10 . . . . . 3 . . . . . 3 . . 1 . . . . . . . Repair Stations 2 | . . . . . . . . . . . . . . . . . . . 2 . . . . . . . . . . . . . . . . Recycling Units 15 | . 2 . . 3 . 8 . . . . . . 1 . . . . . 1 . . . . . . . . . . . . . . . . Scanalyzers 19 | . . . 2 . . . 3 . . . . . . . . . . . . . . . . . . . . 4 . 4 . 2 4 . . Garrison Access 23 | . . . . 3 . . 1 . 1 . 1 . 2 . 1 . 1 . 1 . . . 1 . 2 . . 1 . 2 . . 6 . . Terminal Hacks 50 | . 3 . 1 4 3 . 1 . . 2 . . 7 2 . 2 . . 3 1 3 . . 3 . 1 1 4 . 2 1 2 3 1 . Part Schematic 1 | . 1 . . . . . . . . . . . . . . . . . . . . . . . . . . . . . . . . . . Prototype ID Bank 6 | . 1 . . . . . 1 . . . . . 3 . . . . . 1 . . . . . . . . . . . . . . . . Open Door 9 | . . . . 2 . . . . . 1 . . . . . . . . . . . . . 1 . . . 1 . . . 1 2 1 . Level Access Points 1 | . . . . . . . . . . . . . . . . . . . . . . . . . . . . . . 1 . . . . . Branch Access Points 3 | . . . 1 . . . . . . . . . . . . . . . . . . . . . . . 1 . . 1 . . . . . Emergency Access Points 4 | . . . . . 1 . . . . . . . . 1 . 1 . . . . . . . 1 . . . . . . . . . . . Terminal Index 3 | . . . . 1 . . . . . . . . 1 . . . . . . . 1 . . . . . . . . . . . . . . Unreport Threat 6 | . 1 . . . . . . . . . . . . . . . . . 2 . . . . . . . . 1 . . 1 1 . . . Locate Traps 2 | . . . . . . . . . . . . . 1 . . . . . . . . . . . . . . 1 . . . . . . . Hauler Manifests 3 | . . . . 1 . . . . . . . . 1 . . . . . . . . . . . . . . 1 . . . . . . . Registered Components 1 | . . . . . . . . . . . . . 1 . . . . . . . . . . . . . . . . . . . . . . Zone Layout 3 | . . . . . . . . . . . . . . . . . . . . . 2 . . . . . . . . . . . 1 . . Garrison Registry 3 | . . . . . . . . . . . . . . 1 . 1 . . . . . . . . . 1 . . . . . . . . . Patrol Navigation 2 | . . . . . 1 . . . . . . . . . . . . . . 1 . . . . . . . . . . . . . . . Security Stations 3 | . . . . . 1 . . . . 1 . . . . . . . . . . . . . 1 . . . . . . . . . . . Fabricator Hacks 3 | . . . . . . . . . . . . . 2 . . . . . 1 . . . . . . . . . . . . . . . . Network Status 2 | . . . . . . . . . . . . . 1 . . . . . 1 . . . . . . . . . . . . . . . . Build 1 | . . . . . . . . . . . . . 1 . . . . . . . . . . . . . . . . . . . . . . Repair Station Hacks . | . . . . . . . . . . . . . . . . . . . . . . . . . . . . . . . . . . . . Recycling Unit Hacks 4 | . . . . 1 . 2 . . . . . . 1 . . . . . . . . . . . . . . . . . . . . . . Retrieve Components 4 | . . . . 1 . 2 . . . . . . 1 . . . . . . . . . . . . . . . . . . . . . . Scanalyzer 9 | . . . 1 . . . 1 . . . . . . . . . . . . . . . . . . . . 2 . 3 . . 2 . . Insert Component 3 | . . . . . . . . . . . . . . . . . . . . . . . . . . . . 1 . . . . 2 . . Retrieve Study 6 | . . . 1 . . . 1 . . . . . . . . . . . . . . . . . . . . 1 . 3 . . . . . Garrison Access Hacks 20 | . . . . 1 . . 1 . 1 . 1 . 2 . 1 . 1 . 1 . . . 1 . 2 . . 1 . 2 . . 5 . . Unlock Access 9 | . . . . 1 . . 1 . 1 . . . 1 . 1 . . . 1 . . . 1 . 1 . . 1 . . . . . . . Seal Access 8 | . . . . . . . . . . . 1 . 1 . . . 1 . . . . . . . 1 . . . . 1 . . 3 . . Coupler Status 3 | . . . . . . . . . . . . . . . . . . . . . . . . . . . . . . 1 . . 2 . . Unauthorized Hacks 30 | . 7 . 2 5 . 4 . . . . . . 4 . 2 . . . 3 . 2 . . . . . . 1 . . . . . . . Terminals 22 | . 6 . 2 4 . . . . . . . . 3 . 2 . . . 2 . 2 . . . . . . 1 . . . . . . . Botnet 8 | . 1 . . 1 . . . . . . . . 2 . 1 . . . 1 . 1 . . . . . . 1 . . . . . . . Operators 1 | . . . . . . . . . . . . . 1 . . . . . . . . . . . . . . . . . . . . . . Skim 13 | . 5 . 2 3 . . . . . . . . . . 1 . . . 1 . 1 . . . . . . . . . . . . . . Fabricators 2 | . . . . . . . . . . . . . 1 . . . . . 1 . . . . . . . . . . . . . . . . Haulers 2 | . . . . . . . . . . . . . 1 . . . . . 1 . . . . . . . . . . . . . . . . Repair Stations . | . . . . . . . . . . . . . . . . . . . . . . . . . . . . . . . . . . . . Recycling Units 6 | . 1 . . 1 . 4 . . . . . . . . . . . . . . . . . . . . . . . . . . . . . Reject 1 | . . . . 1 . . . . . . . . . . . . . . . . . . . . . . . . . . . . . . . Tunnel 5 | . 1 . . . . 4 . . . . . . . . . . . . . . . . . . . . . . . . . . . . . Scanalyzers . | . . . . . . . . . . . . . . . . . . . . . . . . . . . . . . . . . . . . Garrison Access . | . . . . . . . . . . . . . . . . . . . . . . . . . . . . . . . . . . . . Data Cores Recovered . | . . . . . . . . . . . . . . . . . . . . . . . . . . . . . . . . . . . . Used . | . . . . . . . . . . . . . . . . . . . . . . . . . . . . . . . . . . . . Hacking Detections 95 | . 6 . 3 5 4 3 5 1 1 1 . . 12 2 1 3 . . 6 1 2 . . 1 1 1 2 8 1 3 7 5 10 . . Full Trace Events 7 | . . . . 1 2 . . . . . . . . . . 1 . . 1 . . . . . . . 1 . . . . . 1 . . Feedback Events . | . . . . . . . . . . . . . . . . . . . . . . . . . . . . . . . . . . . . Feedback Blocked . | . . . . . . . . . . . . . . . . . . . . . . . . . . . . . . . . . . . . Robot Schematics Acquired 56 | . . . . . . . . . . . . . . . . . . . . . . . . . . . . 1 . . 5 2 48 . . Robots Built . | . . . . . . . . . . . . . . . . . . . . . . . . . . . . . . . . . . . . Authchips . | . . . . . . . . . . . . . . . . . . . . . . . . . . . . . . . . . . . . Time . | . . . . . . . . . . . . . . . . . . . . . . . . . . . . . . . . . . . . Total Robot Build Rating . | . . . . . . . . . . . . . . . . . . . . . . . . . . . . . . . . . . . . Part Schematics Acquired 14 | . 1 . . . . . . . . . . . . . . . . . . . . . . . . . . 3 . . 5 5 . . . Parts Built 2 | . . . . . . . . . . . . . 2 . . . . . . . . . . . . . . . . . . . . . . Authchips . | . . . . . . . . . . . . . . . . . . . . . . . . . . . . . . . . . . . . Time 128 | . . . . . . . . . . . . . 128 . . . . . . . . . . . . . . . . . . . . . . Total Part Build Rating 16 | . . . . . . . . . . . . . 16 . . . . . . . . . . . . . . . . . . . . . . Part Studies Acquired 6 | . . . 1 . . . 1 . . . . . . . . . . . . . . . . . . . . 1 . 3 . . . . . Parts Repaired . | . . . . . . . . . . . . . . . . . . . . . . . . . . . . . . . . . . . . Time . | . . . . . . . . . . . . . . . . . . . . . . . . . . . . . . . . . . . . Parts Recycled . | . . . . . . . . . . . . . . . . . . . . . . . . . . . . . . . . . . . . Recycled Matter . | . . . . . . . . . . . . . . . . . . . . . . . . . . . . . . . . . . . . Retrieved Matter . | . . . . . . . . . . . . . . . . . . . . . . . . . . . . . . . . . . . . Retrieved Components 8 | . . . . . . 2 . . . . . . 6 . . . . . . . . . . . . . . . . . . . . . . Parts Scanalyzed . | . . . . . . . . . . . . . . . . . . . . . . . . . . . . . . . . . . . . Part Schematics Acquired . | . . . . . . . . . . . . . . . . . . . . . . . . . . . . . . . . . . . . Parts Damaged . | . . . . . . . . . . . . . . . . . . . . . . . . . . . . . . . . . . . . Bothacking | -11 -10 -10 -9 -9 -9 -9 -7 -7 -7 -7 -6 -6 -6 -6 -6 -6 -5 -5 -5 -5 -4 -4 -4 -4 -3 -3 -3 -3 -3 -2 -2 -2 -1 -1 -1 ------------ Run | Yrd Mat Min Mat Sto Gar Rec Fac Gar Fac Gar Fac Was Fac Gar Fac Gar Fac Was Fac Gar Fac Was Fac Gar Res Gar Res Tes Gar Res Qua Sec Acc Com Ac0 Used RIF Installer 9 | . . . . . 1 . . 1 . 1 . . . 1 . 1 . . . 1 . . . 1 . 1 . . 1 . . . . . . Hotswap 1 | . . . . . . . . . . 1 . . . . . . . . . . . . . . . . . . . . . . . . . Command Fork 2 | . . . . . . . . . . . . . . 1 . . . . . . . . . . . 1 . . . . . . . . . Watcher Feeds 1 | . . . . . . . . 1 . . . . . . . . . . . . . . . . . . . . . . . . . . . Patrol Navigation 1 | . . . . . . . . . . . . . . . . . . . . 1 . . . . . . . . . . . . . . . Program Shield 1 | . . . . . . . . . . . . . . . . 1 . . . . . . . . . . . . . . . . . . . Autoassimilate 1 | . . . . . . . . . . . . . . . . . . . . . . . . 1 . . . . . . . . . . . Crosswire 1 | . . . . . . . . . . . . . . . . . . . . . . . . . . . . . 1 . . . . . . Robots Hacked 108 | . . . . . . . . 1 3 2 1 6 4 4 . 3 1 . 9 1 . 1 1 3 3 1 7 4 5 11 11 11 13 2 . Non-combat 38 | . . . . . . . . . 1 2 1 . 1 . . . 1 . 4 . . . 1 1 3 . 7 4 . 5 5 1 1 . . Combat 70 | . . . . . . . . 1 2 . . 6 3 4 . 3 . . 5 1 . 1 . 2 . 1 . . 5 6 6 10 12 2 . Autoassimilated 15 | . . . . . . . . . . . . . . . . . . . . . . . . . . . . . 1 1 2 3 8 . . Robot Hacks Applied 125 | . . . . . . . . 1 4 3 1 6 4 4 . 3 1 . 12 1 . 1 1 5 3 1 19 4 5 11 17 11 5 2 . parse_system 6 | . . . . . . . . . . . . . . . . . . . 1 . . . . . . . . 1 . 1 2 1 . . . find_chute 2 | . . . . . . . . . . . 1 . . . . . 1 . . . . . . . . . . . . . . . . . . ignore_repairs 1 | . . . . . . . . . . . . . . . . . . . . . . . . . . . 1 . . . . . . . . map_walls 1 | . . . . . . . . . . . . . . . . . . . . . . . . . . . . . . 1 . . . . . drop_inventory 17 | . . . . . . . . . . . . . 1 . . . . . . . . . 1 . 3 . 3 2 . 3 2 1 1 . . ignore_parts 5 | . . . . . . . . . 1 . . . . . . . . . . . . . . . . . 2 . . 1 1 . . . . deconstruct_bot 1 | . . . . . . . . . . 1 . . . . . . . . . . . . . . . . . . . . . . . . . purge_threat 20 | . . . . . . . . . . . . . . . . . . . 2 . . . . . . . 11 . . . 7 . . . . block_reporting 1 | . . . . . . . . . . . . . . . . . . . . . . . . . . . 1 . . . . . . . . map_route 1 | . . . . . . . . . . . . . . . . . . . 1 . . . . . . . . . . . . . . . . disable_scanner 7 | . . . . . . . . . . . . . . . . . . . . . . . . . . . . . . . 2 5 . . . locate_prototypes 2 | . . . . . . . . . . . . . . . . . . . . . . . . . . . . . . . . 2 . . . ignore_targets 7 | . . . . . . . . . . . . 6 . . . . . . . . . 1 . . . . . . . . . . . . . find_garrison 1 | . . . . . . . . . 1 . . . . . . . . . . . . . . . . . . . . . . . . . . scatter_targeting 1 | . . . . . . . . . . . . . . . . . . . . . . . . 1 . . . . . . . . . . . link_complan 1 | . . . . . . . . . . . . . . . . . . . . . . . . 1 . . . . . . . . . . . spike_heat 1 | . . . . . . . . . . . . . . 1 . . . . . . . . . . . . . . . . . . . . . amplify_resonance 12 | . . . . . . . . . . . . . 1 1 . 2 . . . 1 . . . . . . . . . 2 . 1 4 . . overwrite_iff 13 | . . . . . . . . . . . . . 1 2 . 1 . . 5 . . . . 1 . . . . 1 . 1 1 . . . formatsys_low 5 | . . . . . . . . . . 2 . . . . . . . . . . . . . 1 . . 1 1 . . . . . . . formatsys_high 20 | . . . . . . . . 1 2 . . . 1 . . . . . 3 . . . . 1 . 1 . . 4 3 2 . . 2 . Relay Couplers Released 142 | . . . . . 10 . . 19 . 19 . . . 7 . 17 . . . 19 . . . 15 . 8 . . 23 4 . . 1 . . Machine Destruction 134 | . . . . . 10 . . 19 . 19 . . . 7 . 13 . . . 19 . . . 15 . 8 . . 23 . . . 1 . . Programmers 8 | . . . . . . . . . . . . . . . . 4 . . . . . . . . . . . . . 4 . . . . . Attached 35 | . . . . . . . . 1 2 1 1 . 4 1 1 4 1 . 4 1 . 1 . 3 1 1 1 . 1 3 2 . 1 . . Crosswired 3 | . . . . . . . . . . . . . . . . . . . . . . . . . . . . . 3 . . . . . . Fabnet Peak Effective % . | . . . . . . . . . . . . . . . . . . . . . . . . . . . . . . . . . . . . Robots Rewired 10 | . . . . . . . . . . 6 . . . 1 . . . . . . . . . . . . . . 3 . . . . . . Allies Hacked 2 | . . . . . . . . . . 1 . . . . . . . . . . . . . . . . . 1 . . . . . . . Hacks Repelled . | . . . . . . . . . . . . . . . . . . . . . . . . . . . . . . . . . . . . Allies | -11 -10 -10 -9 -9 -9 -9 -7 -7 -7 -7 -6 -6 -6 -6 -6 -6 -5 -5 -5 -5 -4 -4 -4 -4 -3 -3 -3 -3 -3 -2 -2 -2 -1 -1 -1 -------- Run | Yrd Mat Min Mat Sto Gar Rec Fac Gar Fac Gar Fac Was Fac Gar Fac Gar Fac Was Fac Gar Fac Was Fac Gar Res Gar Res Tes Gar Res Qua Sec Acc Com Ac0 Total Allies 100 | . . 2 . 2 . . . 1 2 10 . . 2 3 . 1 . . 9 . . 20 . 6 . 4 1 1 9 6 6 5 8 2 . Largest Group 19 | . . 2 2 2 1 . . 1 2 10 10 7 2 1 1 1 . . 4 . . 19 17 3 1 2 1 1 5 4 3 4 2 2 . Highest-Rated Group 684 | . . 62 62 62 31 . . 32 45 382 382 203 46 99 99 85 . . 173 . . 684 584 158 56 190 10 45 255 254 488 603 58 431 . Highest-Rated Ally 344 | . . 31 31 31 31 . . 32 29 95 95 80 41 99 99 85 . . 115 . . 50 46 116 56 95 10 45 56 69 344 344 58 216 . Total Orders 23 | . . . . . . . . . . 4 . . 1 2 . . . . . . . . . 1 . . . . . 1 2 10 1 1 . STAY 9 | . . . . . . . . . . 1 . . . 1 . . . . . . . . . . . . . . . . 1 5 . 1 . ROAM 2 | . . . . . . . . . . . . . . . . . . . . . . . . . . . . . . 1 . . 1 . . FOLLOW 8 | . . . . . . . . . . 1 . . . 1 . . . . . . . . . . . . . . . . 1 5 . . . AID 4 | . . . . . . . . . . 2 . . 1 . . . . . . . . . . 1 . . . . . . . . . . . Ally Attacks 756 | . . 14 41 47 7 . . 2 8 47 10 65 5 5 11 2 . . 29 . . 7 72 53 . 32 . . 82 52 15 118 8 24 . Total Damage 28733 | . . 215 461 588 83 . . 113 106 1218 402 3364 172 116 602 175 . . 593 . . 276 1585 1805 . 1097 . . 3478 2021 658 6839 201 2565 . Kills 130 | . . 4 10 8 1 . . 1 . 10 1 3 . 1 4 1 . . 4 . . . 9 13 . 6 . . 13 15 2 20 1 3 . Allies Corrupted 4 | . . . . . . . . . . . . . . . . . . . . . . . . . . . . 1 . . . 1 . 2 . Allies Melted 4 | . . . . . . . . . . . . . . . . 1 . . 1 . . . . . . 1 . . . . . 1 . . . Intel | -11 -10 -10 -9 -9 -9 -9 -7 -7 -7 -7 -6 -6 -6 -6 -6 -6 -5 -5 -5 -5 -4 -4 -4 -4 -3 -3 -3 -3 -3 -2 -2 -2 -1 -1 -1 ------- Run | Yrd Mat Min Mat Sto Gar Rec Fac Gar Fac Gar Fac Was Fac Gar Fac Gar Fac Was Fac Gar Fac Was Fac Gar Res Gar Res Tes Gar Res Qua Sec Acc Com Ac0 Active Infowar (turns) 31832 | 144 1363 237 . . . 718 454 12 . . 526 5 . 418 252 1743 227 182 1421 2243 417 1371 572 2119 670 1054 834 1575 1943 906 1426 1134 2666 4867 333 Optics 28373 | . . . . . . . . . . . . . . 418 252 1743 227 182 1421 2243 417 1371 572 2119 670 1054 834 1575 1943 906 1426 1134 2666 4867 333 Sensors 1774 | . . 2 . . . 718 454 12 . . 526 5 . . . . . . 54 . . . . . . 3 . . . . . . . . . IFF 2 | . . . . . . . . . . . . . . . . . . . . . . . . . . . . . . . . . 2 . . Terrain 1595 | 8 53 . . . . . . . . . . . . . . . . . . . 2 . . . . . . . . . . 1 1393 . 138 Seismic 1742 | 144 1363 235 . . . . . . . . . . . . . . . . . . . . . . . . . . . . . . . . . Cloaking 4790 | . . . . . . . . . . . . . . . . . . . . . . . . . 532 9 764 787 36 20 68 1 1638 935 . Jamming 4423 | . . . . . . . . . . . . . . . . . . . 26 . . . . 3 654 940 830 1574 396 . . . . . . ECM 2 | . . . . . . . . . . . . . . . . . . . 2 . . . . . . . . . . . . . . . . Robot Analysis Total 101 | . . . . . . . . . . . . . . . . . . . . . . . . . . . . . . . . . 101 . . Derelict Logs Recovered 2 | . . 2 . . . . . . . . . . . . . . . . . . . . . . . . . . . . . . . . . Drone Launches . | . . . . . . . . . . . . . . . . . . . . . . . . . . . . . . . . . . . . Drone Recoveries . | . . . . . . . . . . . . . . . . . . . . . . . . . . . . . . . . . . . . Exploration | -11 -10 -10 -9 -9 -9 -9 -7 -7 -7 -7 -6 -6 -6 -6 -6 -6 -5 -5 -5 -5 -4 -4 -4 -4 -3 -3 -3 -3 -3 -2 -2 -2 -1 -1 -1 ------------- Run | Yrd Mat Min Mat Sto Gar Rec Fac Gar Fac Gar Fac Was Fac Gar Fac Gar Fac Was Fac Gar Fac Was Fac Gar Res Gar Res Tes Gar Res Qua Sec Acc Com Ac0 Turns Passed 45300 | 210 1363 906 587 1056 2065 747 633 1773 406 2351 527 256 2340 1444 252 1743 227 182 1421 2243 417 1371 572 2119 670 1054 834 1575 1943 906 1426 1815 2666 4867 333 Spaces Moved 23019 | 97 600 498 266 477 745 294 318 742 269 1186 292 103 1181 553 89 751 165 113 930 1048 240 696 271 855 289 417 437 742 860 379 670 972 1803 3233 438 Core 5 | 5 . . . . . . . . . . . . . . . . . . . . . . . . . . . . . . . . . . . Treads 17181 | 92 600 498 266 477 745 294 10 . . 753 292 103 1181 553 89 697 . . . 911 240 696 271 855 289 417 437 742 860 379 670 826 1180 1758 . Legs 1399 | . . . . . . . . . . . . . . . . 54 165 113 930 137 . . . . . . . . . . . . . . . Wheels 1752 | . . . . . . . 308 742 269 433 . . . . . . . . . . . . . . . . . . . . . . . . . Hover 1887 | . . . . . . . . . . . . . . . . . . . . . . . . . . . . . . . . . . 1449 438 Flight . | . . . . . . . . . . . . . . . . . . . . . . . . . . . . . . . . . . . . Fastest Speed 50 | 50 160 160 160 160 160 240 150 150 120 120 160 160 160 160 165 100 100 100 98 100 160 160 160 160 160 160 160 160 166 163 163 147 151 54 54 Average Speed 150 | 154 199 161 160 160 220 240 153 150 128 145 160 160 160 162 165 163 100 100 104 152 162 160 180 187 160 160 160 164 166 164 165 154 154 105 54 Slowest Speed 320 | 160 240 240 160 160 320 240 240 150 150 240 160 160 160 250 165 250 104 100 170 160 240 240 243 243 160 240 160 255 166 166 166 166 155 166 65 Overloaded Moves . | . . . . . . . . . . . . . . . . . . . . . . . . . . . . . . . . . . . . Propulsion Burnouts . | . . . . . . . . . . . . . . . . . . . . . . . . . . . . . . . . . . . . Robots Hopped 1 | . . . . . . . . . . . . . . . . . . . . . . . . . 1 . . . . . . . . . . Potential Cave-ins 6 | . . . . . . . . . . . . . . . . . . . 2 . . . . . . . . . . . . . 4 . . Cave-ins Triggered . | . . . . . . . . . . . . . . . . . . . . . . . . . . . . . . . . . . . . Teleports 2 | . . . . . . . . . . . . . . . . . . . . . . . . . . . . . . . . . . 1 1 Microwarps 56 | . . . . . . . . . . . . . . . . . . . . . . . . . . . . . . . . 10 43 3 . Exploration Rate (%) 53 | 7 85 95 26 83 72 78 10 86 19 92 8 75 47 71 8 76 8 80 29 83 6 95 10 92 14 65 15 92 73 22 86 63 62 66 29 Regions Visited 35 Branch Regions 8 Pre-discovered Areas 6 | . 1 1 . . . 4 . . . . . . . . . . . . . . . . . . . . . . . . . . . . . Known Exits Taken 15 | . 1 1 1 1 . . 1 . 1 . . . 1 . 1 . . . 1 . . . 1 . 1 . 1 1 . 1 . 1 . . . Unknown Exits Taken 5 | 1 . . . . . 1 . . . . . . . . . . . . . . . . . . . . . . . . 1 . 1 1 . Scrap Searched 1 | . . 1 . . . . . . . . . . . . . . . . . . . . . . . . . . . . . . . . . Spaces Dug 382 | . 4 . 4 27 . 5 1 44 . 51 3 . 20 . . 15 2 . 4 20 . . 2 9 2 27 11 2 4 19 7 15 61 19 4 Terrain Destroyed 1431 | . 9 . 6 61 86 10 9 49 28 86 68 1 37 . 40 37 9 13 87 71 . . 10 123 28 140 20 22 39 35 29 64 113 66 35 Melee 171 | . . . . . . 5 1 31 . 37 3 . 11 . . 15 2 . . . . . . . . . . . . . 6 5 36 16 3 Projectile 575 | . 6 . 6 3 . 5 8 2 . 8 . 1 19 . 4 22 7 13 40 32 . . 10 49 10 36 20 22 39 35 4 48 55 50 21 AOE 671 | . 3 . . 58 86 . . 16 28 41 65 . 7 . 36 . . . 47 39 . . . 73 18 103 . . . . 19 11 21 . . Terrain Rammed . | . . . . . . . . . . . . . . . . . . . . . . . . . . . . . . . . . . . . Walls Destroyed . | . . . . . . . . . . . . . . . . . . . . . . . . . . . . . . . . . . . . Machines Disabled . | . . . . . . . . . . . . . . . . . . . . . . . . . . . . . . . . . . . . Actions | -11 -10 -10 -9 -9 -9 -9 -7 -7 -7 -7 -6 -6 -6 -6 -6 -6 -5 -5 -5 -5 -4 -4 -4 -4 -3 -3 -3 -3 -3 -2 -2 -2 -1 -1 -1 --------- Run | Yrd Mat Min Mat Sto Gar Rec Fac Gar Fac Gar Fac Was Fac Gar Fac Gar Fac Was Fac Gar Fac Was Fac Gar Res Gar Res Tes Gar Res Qua Sec Acc Com Ac0 Total 30261 | 126 680 554 358 629 951 311 422 1145 312 1529 329 155 1503 986 145 1120 193 140 1193 1525 259 903 317 1162 405 654 535 1004 1162 570 913 1220 1805 4546 500 Wait 3114 | . 10 9 12 23 19 1 41 159 2 80 15 20 166 255 14 163 2 1 25 233 1 117 9 104 32 47 6 111 104 73 70 51 201 935 3 Move 22254 | 96 599 497 265 477 744 293 318 741 269 1185 292 102 1181 552 89 750 165 112 930 1047 240 695 271 854 287 416 436 742 859 378 669 835 1222 3209 437 Hop 1 | . . . . . . . . . . . . . . . . . . . . . . . . . 1 . . . . . . . . . . Pick Up 406 | 6 15 1 13 10 24 . 7 12 4 19 2 2 23 17 1 15 2 1 17 18 3 9 2 17 4 17 8 10 22 4 12 25 22 40 2 Fast Attach 192 | 6 . 2 1 4 6 . 3 1 3 4 . 1 2 11 2 12 . . 11 16 1 8 2 5 4 6 3 13 . 2 2 18 14 29 . Attach 163 | 1 . 2 2 . 13 . 4 5 . 2 2 . 7 5 . 6 2 . 9 4 1 1 . 2 3 1 2 2 5 2 1 12 27 36 4 Detach 110 | . . 1 . . 1 . 3 1 1 . . . . 1 2 5 . . 4 6 . 2 1 1 1 1 1 4 . 2 1 12 23 36 . Swap 693 | . 7 10 13 29 25 1 10 25 9 31 6 7 36 19 2 23 8 1 36 16 2 17 13 42 23 35 18 44 21 17 26 45 53 21 2 Drop 461 | 1 2 6 14 21 5 . 8 10 8 19 . 2 18 22 2 18 . 1 17 31 2 18 3 21 2 24 10 26 16 6 10 31 29 55 3 Fire 2320 | 16 41 25 35 64 67 3 19 73 16 102 9 21 53 86 32 99 12 24 130 144 9 36 15 110 47 106 50 50 130 85 108 173 172 114 44 Melee 323 | . . . . . 38 13 9 53 . 46 3 . 13 . 1 28 2 . 10 . . . . . . . . . . . 14 17 42 29 5 Ram . | . . . . . . . . . . . . . . . . . . . . . . . . . . . . . . . . . . . . Kick 4 | . . . . . . . . . . . . . . . . . . . 4 . . . . . . . . . . . . . . . . Crush 26 | . 6 1 3 1 . . . 1 . . . . 4 1 . 1 . . . . . . 1 . 1 . 1 2 1 1 . 1 . . . Escape Stasis 150 | . . . . . 6 . . 64 . 24 . . . . . . . . . 10 . . . 6 . 1 . . . . . . . 39 . Rewire 44 | . . . . . 3 . . . . 17 . . . 17 . . . . . . . . . . . . . . 4 . . . . 3 . Trap . | . . . . . . . . . . . . . . . . . . . . . . . . . . . . . . . . . . . . Miscellaneous . | . . . . . . . . . . . . . . . . . . . . . . . . . . . . . . . . . . . . Route ------- -11/Scrapyard -10/Materials (discovered 6 exits: *Mat x3 / *Min x2 / [*Sub]) -10/Mines (discovered 3 exits: *Mat x2 / [*Sub]) -9/Materials (discovered 3 exits: Min x2 / *Sto) -9/Storage (discovered 3 exits: [*Mat] / Rec / Gar) -9/Garrison (discovered 2 exits: *Rec x2) -9/Recycling (discovered 2 exits: *Fac / Scr) -7/Factory (discovered 2 exits: *Fac / Gar) -7/Garrison (discovered 3 exits: *Fac x3) -7/Factory (discovered 2 exits: [*Low] / Gar) -7/Garrison (discovered 3 exits: *Fac x3) -6/Factory -6/Waste -6/Factory (discovered 5 exits: *Fac x2 / [*Low x2] / Gar) -6/Garrison (discovered 3 exits: *Fac x3) -6/Factory -6/Garrison (discovered 3 exits: *Fac x3) -5/Factory -5/Waste -5/Factory (discovered 2 exits: [*Upp] / Gar) -5/Garrison (discovered 3 exits: *Fac x3) -4/Factory -4/Waste -4/Factory -4/Garrison (discovered 3 exits: *Res x3) -3/Research (discovered 2 exits: *Res / Gar) -3/Garrison (discovered 3 exits: *Res x3) -3/Research (discovered 3 exits: Arm / *Tes x2) -3/Testing (discovered 2 exits: *Res / Gar) -3/Garrison (discovered 3 exits: *Res x3) -2/Research (discovered 5 exits: Acc x3 / *Qua x2) -2/Quarantine (discovered 3 exits: *Acc / *Sec / [*Frg]) -2/Section 7 -1/Access (discovered 2 exits: [*Sur] / *Com) -1/Command (discovered 3 exits: [*Sur x2] / [*Ac0]) -1/Access_0 0b11 Command History --------- Turn | Location | Event 5 | -11/Scrapyard | Discovered new exit (range 16) 211 | -11/Scrapyard | Entered Materials 304 | -10/Materials | Build established: Mutant 550 | -10/Materials | Discovered new exit (range 11) 638 | -10/Materials | Discovered new exit (range 9) 864 | -10/Materials | Discovered new exit (range 9) 984 | -10/Materials | Learned location of 1 exit from Recycling 1062 | -10/Materials | Learned Storage emergency access door positions 1190 | -10/Materials | Learned 2 Storage zone layouts 1235 | -10/Materials | Discovered new exit (range 16) 1240 | -10/Materials | Identified exit to Mines 1344 | -10/Materials | Identified exit to Materials 1452 | -10/Materials | Learned Storage trap positions 1574 | -10/Materials | Entered Mines 1662 | -10/Mines | Discovered new exit (range 9) 1736 | -10/Mines | Found a hidden stash of uninstalled traps 1793 | -10/Mines | Discovered exit to Materials (range 15) 1843 | -10/Mines | Core integrity fell below 50% 1843 | -10/Mines | Destroyed YI-UF0 1865 | -10/Mines | Found Prototype Storage 1865 | -10/Mines | Identified YI-UF0's Bottomless Matter Pit 1907 | -10/Mines | Learned 2 Materials zone layouts 1926 | -10/Mines | Found a damaged Exp. Sensor Array with a note attached 1929 | -10/Mines | Found Prototype Device 1930 | -10/Mines | Identified Exp. Sensor Array 1962 | -10/Mines | Discovered exit to Materials (range 11) 1990 | -10/Mines | Escorted by a lone wolf Derelict 2341 | -10/Mines | Found a Scrap Suit stashed away for nefarious purposes 2379 | -10/Mines | Met a Derelict testing a Signal Generator 2480 | -10/Mines | Entered Materials 2480 | -9/Materials | Accompanied by 2 allies 2480 | -9/Materials | Evolved 2 slots: Propulsion x1, Weapon x1 2481 | -9/Materials | Identified exit to Mines 2683 | -9/Materials | Discovered new exit (range 10) 2806 | -9/Materials | Build established: Tank 2929 | -9/Materials | Identified exit to Storage 3067 | -9/Materials | Entered Storage 3067 | -9/Storage | Accompanied by 1 ally 3068 | -9/Storage | Identified exit to Recycling 3069 | -9/Storage | Loaded intel: 15 trap records 3199 | -9/Storage | Build established: Scavenger-Tank 3558 | -9/Storage | Discovered new exit (range 16) 3649 | -9/Storage | Garrison activated, responded to threat 3653 | -9/Storage | Build established: Tank 3782 | -9/Storage | Met a pair of Derelict thieves 3867 | -9/Storage | First assault squad dispatched 3920 | -9/Storage | Destroyed 12 combat bots 4123 | -9/Storage | Identified exit to Garrison 4123 | -9/Storage | Entered Garrison 4123 | -9/Garrison | Accompanied by 1 ally 4243 | -9/Garrison | Triggered checkpoint 4258 | -9/Garrison | Garrison Relay disabled 4412 | -9/Garrison | Phase Generator disabled 4693 | -9/Garrison | Spotted B-75 Beast 4774 | -9/Garrison | Core integrity fell below 50% 4827 | -9/Garrison | Build established: Mutant 4837 | -9/Garrison | Lost 7 parts (1p2n4w) 4873 | -9/Garrison | Core integrity fell below 20% 5019 | -9/Garrison | Destroyed B-75 Beast 5044 | -9/Garrison | Lost 4 parts (1p1n1u1w) 5301 | -9/Garrison | Triggered checkpoint 5332 | -9/Garrison | Build established: Scavenger-Mutant 5381 | -9/Garrison | Discovered exit to Recycling (range 12) 5443 | -9/Garrison | Triggered checkpoint 5504 | -9/Garrison | Learned Recycling security intel 5526 | -9/Garrison | Garrison Relay disabled 5780 | -9/Garrison | Spotted B-75 Beast 5902 | -9/Garrison | Discovered exit to Recycling (range 5) 6103 | -9/Garrison | Triggered checkpoint 6116 | -9/Garrison | Installed Relay Interface Framework 6188 | -9/Garrison | Entered Recycling 6189 | -9/Recycling | Identified exit to Scraptown 6428 | -9/Recycling | Build established: Bothacker-Mutant 6925 | -9/Recycling | Discovered new exit (range 5) 6935 | -9/Recycling | Entered Factory 6935 | -7/Factory | Evolved 4 slots: Propulsion x1, Utility x3 7062 | -7/Factory | Discovered new exit (range 6) 7542 | -7/Factory | Identified exit to Garrison 7568 | -7/Factory | Entered Garrison 7616 | -7/Garrison | Triggered checkpoint 7681 | -7/Garrison | Garrison Relay disabled 7704 | -7/Garrison | Garrison Relay disabled 7966 | -7/Garrison | Triggered checkpoint 8106 | -7/Garrison | Triggered checkpoint 8146 | -7/Garrison | Garrison Relay disabled 8355 | -7/Garrison | Discovered new exit (range 13) 8424 | -7/Garrison | Triggered checkpoint 8528 | -7/Garrison | Destroyed 10 combat bots 8599 | -7/Garrison | Discovered new exit (range 8) 8702 | -7/Garrison | Triggered checkpoint 8771 | -7/Garrison | Lost 3 parts (1n1u1w) 8845 | -7/Garrison | Discovered new exit (range 6) 8862 | -7/Garrison | Identified exit to Factory 8894 | -7/Garrison | Triggered checkpoint 8973 | -7/Garrison | Expanded RIF knowledge: Watcher Feeds 9050 | -7/Garrison | Garrison Relay disabled 9194 | -7/Garrison | Triggered checkpoint 9204 | -7/Garrison | Garrison Relay disabled 9341 | -7/Garrison | Entered Factory 9741 | -7/Factory | First assault squad dispatched 9746 | -7/Factory | Discovered new exit (range 14) 9747 | -7/Factory | Identified exit to Garrison 9747 | -7/Factory | Entered Garrison 9747 | -7/Garrison | Accompanied by 1 ally 9772 | -7/Garrison | Build established: Bothacker-Tank 9837 | -7/Garrison | Triggered checkpoint 9866 | -7/Garrison | Garrison Relay disabled 10129 | -7/Garrison | Triggered checkpoint 10141 | -7/Garrison | Garrison Relay disabled 10270 | -7/Garrison | Triggered checkpoint 10299 | -7/Garrison | Triggered checkpoint 10355 | -7/Garrison | Discovered new exit (range 10) 10379 | -7/Garrison | Triggered checkpoint 10399 | -7/Garrison | Triggered checkpoint 10463 | -7/Garrison | Found embedded Infiltrators 10835 | -7/Garrison | Triggered checkpoint 10853 | -7/Garrison | Triggered checkpoint 10869 | -7/Garrison | Garrison Relay disabled 11063 | -7/Garrison | Garrison Relay disabled 11089 | -7/Garrison | Triggered checkpoint 11125 | -7/Garrison | Discovered new exit (range 10) 11347 | -7/Garrison | Triggered checkpoint 11418 | -7/Garrison | Discovered new exit (range 10) 11440 | -7/Garrison | Learned Factory security intel 11547 | -7/Garrison | Triggered checkpoint 11567 | -7/Garrison | Garrison Relay disabled 11898 | -7/Garrison | Build established: Bothacker-Mutant 11976 | -7/Garrison | Expanded RIF knowledge: Hotswap 12098 | -7/Garrison | Entered Factory 12098 | -6/Factory | Accompanied by 10 allies 12098 | -6/Factory | Evolved 2 slots: Utility x2 12625 | -6/Factory | Sucked down chute 12625 | -6/Factory | Entered Waste 12640 | -6/Waste | EMP discharged 12660 | -6/Waste | Spotted C-40 Crusher 12683 | -6/Waste | Spotted C-40 Crusher 12694 | -6/Waste | Spotted C-40 Crusher 12707 | -6/Waste | Destroyed C-40 Crusher 12713 | -6/Waste | Allies destroyed C-40 Crusher 12740 | -6/Waste | EMP discharged 12745 | -6/Waste | 1 allies followed down the chute 12748 | -6/Waste | Spotted C-40 Crusher 12749 | -6/Waste | Spotted C-40 Crusher 12755 | -6/Waste | 8 allies followed down the chute 12755 | -6/Waste | Spotted C-40 Crusher 12778 | -6/Waste | Lost 3 allies 12840 | -6/Waste | EMP discharged 12840 | -6/Waste | System corruption reached 10% 12842 | -6/Waste | Discovered new exit (range 16) 12844 | -6/Waste | Build established: Bothacker-Tank 12881 | -6/Waste | Entered Factory 12881 | -6/Factory | Accompanied by 2 allies 13209 | -6/Factory | Discovered new exit (range 14) 13579 | -6/Factory | Discovered new exit (range 16) 13590 | -6/Factory | Build established: Bothacker-Mutant 13697 | -6/Factory | Fabricated Adv. Weapon Cycler (x2) 13879 | -6/Factory | Discovered new exit (range 28) 14042 | -6/Factory | Discovered new exit (range 15) 15011 | -6/Factory | Build established: Bothacker-Tank 15221 | -6/Factory | Identified exit to Garrison 15221 | -6/Factory | Entered Garrison 15275 | -6/Garrison | Triggered checkpoint 15781 | -6/Garrison | Triggered checkpoint 15784 | -6/Garrison | Garrison Relay disabled 15821 | -6/Garrison | Triggered checkpoint 15854 | -6/Garrison | Triggered checkpoint 15940 | -6/Garrison | Destroyed 8 combat bots 16049 | -6/Garrison | Triggered checkpoint 16136 | -6/Garrison | Expanded RIF knowledge: Command Fork 16173 | -6/Garrison | Garrison Relay disabled 16191 | -6/Garrison | Spotted Striker 16193 | -6/Garrison | Spotted Executioner 16214 | -6/Garrison | Destroyed Executioner 16228 | -6/Garrison | Destroyed Striker 16241 | -6/Garrison | Found Prototype Processor 16241 | -6/Garrison | Identified Exp. Core Analyzer 16292 | -6/Garrison | Rewired Striker 16362 | -6/Garrison | Discovered new exit (range 10) 16451 | -6/Garrison | Discovered new exit (range 19) 16451 | -6/Garrison | Discovered new exit (range 57) 16451 | -6/Garrison | Discovered new exit (range 35) 16474 | -6/Garrison | Build established: Botlord-Tank 16597 | -6/Garrison | Found Fusion Bomb Launcher 16665 | -6/Garrison | Entered Factory 16665 | -6/Factory | Accompanied by 1 ally 16834 | -6/Factory | Garrison activated, responded to threat 16878 | -6/Factory | Build established: Botlord-Mutant 16917 | -6/Factory | Identified exit to Garrison 16917 | -6/Factory | Entered Garrison 17068 | -6/Garrison | Destroyed 7 combat bots 17068 | -6/Garrison | Spotted B-75 Beast 17078 | -6/Garrison | Triggered checkpoint 17079 | -6/Garrison | Triggered checkpoint 17344 | -6/Garrison | Discovered new exit (range 12) 17461 | -6/Garrison | Triggered checkpoint 17494 | -6/Garrison | Garrison Relay disabled 17650 | -6/Garrison | Triggered checkpoint 17707 | -6/Garrison | Expanded RIF knowledge: Program Shield 17792 | -6/Garrison | Garrison Relay disabled 17819 | -6/Garrison | Triggered checkpoint 18002 | -6/Garrison | Discovered new exit (range 10) 18019 | -6/Garrison | Triggered checkpoint 18055 | -6/Garrison | Discovered new exit (range 71) 18055 | -6/Garrison | Discovered new exit (range 62) 18055 | -6/Garrison | Discovered new exit (range 6) 18122 | -6/Garrison | Core integrity fell below 50% 18164 | -6/Garrison | Garrison Relay disabled 18279 | -6/Garrison | Triggered checkpoint 18371 | -6/Garrison | Spotted B-75 Beast 18386 | -6/Garrison | Destroyed B-75 Beast 18398 | -6/Garrison | Build established: Botlord-Gunner 18560 | -6/Garrison | Destroyed Executioner 18563 | -6/Garrison | Destroyed Executioner 18616 | -6/Garrison | Found Prototype Device 18616 | -6/Garrison | Identified Adv. Kinecellerator 18626 | -6/Garrison | Found Prototype Processor 18626 | -6/Garrison | Identified Exp. Targeting Computer 18660 | -6/Garrison | Entered Factory 18660 | -5/Factory | Evolved 2 slots: Power x1, Propulsion x1 18887 | -5/Factory | Manually triggered Chute Trap 18887 | -5/Factory | Sucked down chute 18887 | -5/Factory | Entered Waste 18893 | -5/Waste | Spotted C-40 Crusher 18902 | -5/Waste | EMP discharged 18906 | -5/Waste | Destroyed C-40 Crusher 18919 | -5/Waste | Spotted C-40 Crusher 18922 | -5/Waste | Spotted C-40 Crusher 18934 | -5/Waste | Destroyed C-40 Crusher 18974 | -5/Waste | Spotted C-40 Crusher 18975 | -5/Waste | Spotted C-40 Crusher 18996 | -5/Waste | Destroyed C-40 Crusher 19002 | -5/Waste | EMP discharged 19002 | -5/Waste | System corruption reached 10% 19005 | -5/Waste | Destroyed C-40 Crusher 19060 | -5/Waste | Discovered new exit (range 10) 19069 | -5/Waste | Entered Factory 19369 | -5/Factory | First assault squad dispatched 19486 | -5/Factory | Discovered new exit (range 142) 19729 | -5/Factory | Destroyed 11 combat bots 20183 | -5/Factory | Cargo convoy interrupted 20200 | -5/Factory | Garrison activated, responded to threat 20241 | -5/Factory | Lost 3 allies 20269 | -5/Factory | Lost 3 parts (1u2w) 20346 | -5/Factory | Found Prototype Device 20346 | -5/Factory | Identified Exp. ECM Suite 20352 | -5/Factory | Found Prototype Launcher 20352 | -5/Factory | Identified Enh. Gamma Bomb Array 20400 | -5/Factory | Found PL-3XN's Ring of Power 20490 | -5/Factory | Identified exit to Garrison 20490 | -5/Factory | Entered Garrison 20532 | -5/Garrison | Triggered checkpoint 20559 | -5/Garrison | Garrison Relay disabled 20597 | -5/Garrison | Build established: Bothacker-Gunner 20862 | -5/Garrison | Destroyed 7 combat bots 21332 | -5/Garrison | Triggered checkpoint 21345 | -5/Garrison | Garrison Relay disabled 21396 | -5/Garrison | Discovered new exit (range 12) 21460 | -5/Garrison | Triggered checkpoint 21540 | -5/Garrison | Discovered new exit (range 22) 21548 | -5/Garrison | Triggered checkpoint 22123 | -5/Garrison | Triggered checkpoint 22123 | -5/Garrison | Garrison Relay disabled 22167 | -5/Garrison | Expanded RIF knowledge: Patrol Navigation 22328 | -5/Garrison | Triggered checkpoint 22376 | -5/Garrison | Triggered checkpoint 22413 | -5/Garrison | Garrison Relay disabled 22476 | -5/Garrison | Build established: Botlord-Gunner 22554 | -5/Garrison | Discovered new exit (range 10) 22562 | -5/Garrison | Triggered checkpoint 22608 | -5/Garrison | Triggered checkpoint 22608 | -5/Garrison | Garrison Relay disabled 22733 | -5/Garrison | Entered Factory 22733 | -4/Factory | Evolved 2 slots: Power x1, Utility x1 22871 | -4/Factory | Unchained authorized (CL-0N3) 22983 | -4/Factory | First assault squad dispatched 23150 | -4/Factory | Sucked down chute 23150 | -4/Factory | Entered Waste 23151 | -4/Waste | Met a frightened Derelict 23213 | -4/Waste | Spotted C-40 Crusher 23221 | -4/Waste | Spotted C-40 Crusher 23223 | -4/Waste | Destroyed C-40 Crusher 23227 | -4/Waste | Spotted C-40 Crusher 23231 | -4/Waste | Destroyed C-40 Crusher 23243 | -4/Waste | Destroyed C-40 Crusher 23284 | -4/Waste | Spotted C-40 Crusher 23291 | -4/Waste | Destroyed C-40 Crusher 23322 | -4/Waste | Spotted C-40 Crusher 23340 | -4/Waste | Spotted C-40 Crusher 23377 | -4/Waste | Destroyed C-40 Crusher 23394 | -4/Waste | Destroyed C-40 Crusher 23524 | -4/Waste | Discovered new exit (range 10) 23627 | -4/Waste | Warlord forces began an assault 23662 | -4/Waste | Build established: Botlord-Tank 24521 | -4/Waste | Entered Factory 24521 | -4/Factory | Accompanied by 17 allies 24700 | -4/Factory | Unchained authorized (CL-0N3) 24876 | -4/Factory | Lost 6 allies 24961 | -4/Factory | Spotted Quarantine Guard 24980 | -4/Factory | Destroyed Quarantine Guard 24980 | -4/Factory | Quarantine Guard reconstituted as CL-0N3 25007 | -4/Factory | Lost 3 allies 25093 | -4/Factory | Identified exit to Garrison 25093 | -4/Factory | Entered Garrison 25093 | -4/Garrison | Accompanied by 3 allies 25132 | -4/Garrison | Expanded RIF knowledge: Autoassimilate 25253 | -4/Garrison | Triggered checkpoint 25356 | -4/Garrison | Garrison Relay disabled 25673 | -4/Garrison | Triggered checkpoint 25673 | -4/Garrison | Spotted B-86 Titan 25721 | -4/Garrison | Destroyed B-86 Titan 25799 | -4/Garrison | Triggered checkpoint 25863 | -4/Garrison | Triggered checkpoint 25866 | -4/Garrison | Triggered checkpoint 26285 | -4/Garrison | Discovered new exit (range 8) 26315 | -4/Garrison | Triggered checkpoint 26450 | -4/Garrison | Rescued a captive Derelict 26452 | -4/Garrison | Rescued a captive Derelict 26615 | -4/Garrison | Triggered checkpoint 26631 | -4/Garrison | Discovered new exit (range 8) 26691 | -4/Garrison | Garrison Relay disabled 26847 | -4/Garrison | Triggered checkpoint 26900 | -4/Garrison | Learned Research security intel 26981 | -4/Garrison | Build established: Botlord-Gunner 26995 | -4/Garrison | Phase Generator disabled 26995 | -4/Garrison | Discovered new exit (range 12) 27212 | -4/Garrison | Entered Research 27212 | -3/Research | Accompanied by 1 ally 27212 | -3/Research | Evolved 2 slots: Propulsion x1, Utility x1 27269 | -3/Research | Discovered new exit (range 23) 27410 | -3/Research | P-80 Master assimilated allied Assassin 7b 27462 | -3/Research | First assault squad dispatched 27605 | -3/Research | Destroyed 10 combat bots 27882 | -3/Research | Identified exit to Garrison 27882 | -3/Research | Entered Garrison 27897 | -3/Garrison | Found embedded Infiltrators 27926 | -3/Garrison | Triggered checkpoint 27955 | -3/Garrison | Garrison Relay disabled 28043 | -3/Garrison | Discovered new exit (range 32) 28043 | -3/Garrison | Discovered new exit (range 73) 28043 | -3/Garrison | Discovered new exit (range 51) 28101 | -3/Garrison | Triggered checkpoint 28175 | -3/Garrison | Destroyed 10 combat bots 28243 | -3/Garrison | Spotted B-86 Titan 28257 | -3/Garrison | Destroyed B-86 Titan 28279 | -3/Garrison | Found Relay Coupler [Proto] 28294 | -3/Garrison | Found Relay Coupler [Proto] 28297 | -3/Garrison | Found Relay Coupler [Proto] 28301 | -3/Garrison | Found Relay Coupler [Proto] 28436 | -3/Garrison | Build established: Botlord-Tank 28483 | -3/Garrison | Spotted B-75 Beast 28520 | -3/Garrison | Destroyed 10 combat bots 28522 | -3/Garrison | Destroyed B-75 Beast 28558 | -3/Garrison | Triggered checkpoint 28637 | -3/Garrison | Expanded RIF knowledge: Command Fork 28936 | -3/Garrison | Entered Research 29186 | -3/Research | First assault squad dispatched 29203 | -3/Research | Found Exp. EM Disruption Field 29271 | -3/Research | Build established: Botlord-Gunner 29347 | -3/Research | Found Prototype Processor 29347 | -3/Research | Identified Exp. Melee Analysis Suite 29393 | -3/Research | Identified exit to Armory 29393 | -3/Research | Identified exit to Testing 29770 | -3/Research | Entered Testing 29782 | -3/Testing | Spotted PG-YPMUP6H48J 29872 | -3/Testing | Discovered new exit (range 11) 29890 | -3/Testing | Found Prototype Ballistic Cannon 29890 | -3/Testing | Identified Omega Cannon 30135 | -3/Testing | Central database locked down 30469 | -3/Testing | Found Prototype Hackware 30538 | -3/Testing | Spotted Striker 30538 | -3/Testing | Spotted Striker 30613 | -3/Testing | System corruption reached 10% 30640 | -3/Testing | Build established: Botlord-Tank 30758 | -3/Testing | Identified Ghost Barrier 30820 | -3/Testing | Found Prototype Energy Cannon 30820 | -3/Testing | Identified Cld. Nova Cannon 30942 | -3/Testing | Found Prototype Protection 30942 | -3/Testing | Identified Lgt. Regenerative Plating 30946 | -3/Testing | Found Prototype Protection 30946 | -3/Testing | Identified Med. Regenerative Plating 30951 | -3/Testing | Found Prototype Protection 31108 | -3/Testing | Destroyed PG-YPMUP6H48J 31130 | -3/Testing | Found Prototype Device 31130 | -3/Testing | Identified Exp. Thermal Shield 31345 | -3/Testing | Identified exit to Garrison 31345 | -3/Testing | Entered Garrison 31431 | -3/Garrison | Garrison Relay disabled 31466 | -3/Garrison | Garrison Relay disabled 31499 | -3/Garrison | Garrison Relay disabled 31509 | -3/Garrison | Garrison Relay disabled 31512 | -3/Garrison | Identified Hvy. Regenerative Plating 31695 | -3/Garrison | Garrison Relay disabled 31792 | -3/Garrison | Spotted B-86 Titan 31868 | -3/Garrison | Destroyed B-86 Titan 32003 | -3/Garrison | Triggered checkpoint 32065 | -3/Garrison | Triggered checkpoint 32137 | -3/Garrison | Triggered checkpoint 32169 | -3/Garrison | Garrison Relay disabled 32201 | -3/Garrison | Triggered checkpoint 32219 | -3/Garrison | Discovered new exit (range 20) 32320 | -3/Garrison | Found Relay Coupler [Proto] 32323 | -3/Garrison | Found Relay Coupler [Proto] 32327 | -3/Garrison | Found Relay Coupler [Proto] 32329 | -3/Garrison | Found Relay Coupler [Proto] 32508 | -3/Garrison | Discovered new exit (range 21) 32590 | -3/Garrison | Expanded RIF knowledge: Crosswire 32771 | -3/Garrison | Discovered new exit (range 12) 32805 | -3/Garrison | Triggered checkpoint 32941 | -3/Garrison | Triggered checkpoint 32971 | -3/Garrison | Garrison Relay disabled 33288 | -3/Garrison | Entered Research 33288 | -2/Research | Accompanied by 4 allies 33288 | -2/Research | Evolved 2 slots: Utility x2 33488 | -2/Research | Identified exit to Access 33614 | -2/Research | Identified exit to Quarantine 33994 | -2/Research | Found Singularity Reactor 34001 | -2/Research | Found Singularity Reactor 34194 | -2/Research | Entered Quarantine 34194 | -2/Quarantine | Accompanied by 1 ally 34247 | -2/Quarantine | Found Alien Slashing Weapon 34247 | -2/Quarantine | Identified Sigix Broadsword 34478 | -2/Quarantine | Found Enh. Gamma Bomb Array 34564 | -2/Quarantine | Build established: Botlord-Mutant 34832 | -2/Quarantine | Discovered exit to Access (range 25) 34907 | -2/Quarantine | System corruption reached 10% 34944 | -2/Quarantine | First assault squad dispatched 35108 | -2/Quarantine | Spotted Alpha 7 35117 | -2/Quarantine | Assimilated Alpha 7 with formatsys_high 35424 | -2/Quarantine | Found Alien Artifact 35482 | -2/Quarantine | Spotted Fortress 35483 | -2/Quarantine | Autoassimilated Fortress with RIF 35606 | -2/Quarantine | Discovered new exit (range 6) 35606 | -2/Quarantine | Discovered new exit (range 7) 35620 | -2/Quarantine | Entered Section 7 35620 | -2/Section 7 | Accompanied by 2 allies 35693 | -2/Section 7 | Found Alien Artifact 35829 | -2/Section 7 | Spotted S7 Guard 35830 | -2/Section 7 | Autoassimilated S7 Guard with RIF 35870 | -2/Section 7 | Found Alien Artifact 35957 | -2/Section 7 | Spotted B-90 Cyclops 35960 | -2/Section 7 | Discovered exit to Access (range 22) 35977 | -2/Section 7 | Spotted S7 Guard 35978 | -2/Section 7 | Allies destroyed B-90 Cyclops 36003 | -2/Section 7 | Destroyed S7 Guard 36081 | -2/Section 7 | Found Alien Artifact 36120 | -2/Section 7 | First assault squad dispatched 36226 | -2/Section 7 | System corruption reached 30% 36282 | -2/Section 7 | Destroyed 8 combat bots 36337 | -2/Section 7 | Found Integrated Reactor 36337 | -2/Section 7 | Installed Integrated Reactor, increased core energy generation (+10) 36503 | -2/Section 7 | Identified Microwarp Drive 36505 | -2/Section 7 | Found Core Expander 36505 | -2/Section 7 | Installed Core Expander, added new Propulsion slot 36616 | -2/Section 7 | Found Alien Artifact 36616 | -2/Section 7 | Identified LRC Matter Compressor 36616 | -2/Section 7 | Installed LRC Matter Compressor, increased matter storage capacity (+125) 36630 | -2/Section 7 | Found Alien Artifact 36630 | -2/Section 7 | Identified LRC Storage 36630 | -2/Section 7 | Installed LRC Storage, increased inventory capacity (+2) 36633 | -2/Section 7 | Found Alien Artifact 36633 | -2/Section 7 | Identified LRC Armor 36633 | -2/Section 7 | Installed LRC Armor, increased core integrity (+250) 36722 | -2/Section 7 | Spotted B-99 Colossus 36731 | -2/Section 7 | Destroyed B-99 Colossus 36854 | -2/Section 7 | Spotted Executioner 36854 | -2/Section 7 | Spotted Executioner 36864 | -2/Section 7 | Destroyed Executioner 36869 | -2/Section 7 | Destroyed Executioner 36895 | -2/Section 7 | Found Exp. Core Analyzer 36905 | -2/Section 7 | Found Exp. Core Analyzer 36922 | -2/Section 7 | Spotted Striker 36934 | -2/Section 7 | Spotted Striker 37071 | -2/Section 7 | Destroyed 10 combat bots 37097 | -2/Section 7 | Spotted Striker 37164 | -2/Section 7 | Spotted Striker 37192 | -2/Section 7 | Found Sigix Shearcannon 37219 | -2/Section 7 | Found Alien Artifact 37221 | -2/Section 7 | Found Alien Artifact 37239 | -2/Section 7 | Spotted Executioner 37240 | -2/Section 7 | Spotted Executioner 37353 | -2/Section 7 | Found Prototype Device 37353 | -2/Section 7 | Identified Exp. Terrain Scanner 37435 | -2/Section 7 | Entered Access 37435 | -1/Access | Evolved 2 slots: Utility x1, Weapon x1 37531 | -1/Access | Spotted B-99 Colossus 37814 | -1/Access | Spotted B-99 Colossus 37914 | -1/Access | Discovered new exit (range 4) 37952 | -1/Access | Spotted B-99 Colossus 37985 | -1/Access | Destroyed B-99 Colossus 38017 | -1/Access | Destroyed B-99 Colossus 38049 | -1/Access | Found Prototype Ballistic Gun 38049 | -1/Access | Identified Multirail 38241 | -1/Access | Spotted B-99 Colossus 38262 | -1/Access | Identified Transdimensional Reconstructor (x2) 38435 | -1/Access | First assault squad dispatched 38550 | -1/Access | Destroyed 7 combat bots 38650 | -1/Access | System corruption reached 10% 38659 | -1/Access | Unchained authorized (CL-0N3) 38803 | -1/Access | Spotted B-99 Colossus 39204 | -1/Access | W-44 Eye reconstituted as Combat Programmer 39206 | -1/Access | Spotted Combat Programmer 39237 | -1/Access | Destroyed Combat Programmer 39237 | -1/Access | Combat Programmer reconstituted as CL-0N3 39472 | -1/Access | Used Core Regenerator, restored core integrity (+462) 39569 | -1/Access | U-05 Engineer reconstituted as V2 39569 | -1/Access | Spotted V2 39584 | -1/Access | Destroyed V2 39584 | -1/Access | V2 reconstituted as CL-0N3 39589 | -1/Access | Destroyed CL-0N3 39616 | -1/Access | Extracted schematics, analyses from CL-0N3's data core 40098 | -1/Access | Discovered new exit (range 8) 40101 | -1/Access | Core integrity fell below 50% 40101 | -1/Access | Entered Command 40432 | -1/Command | Found Prototype Protection 40432 | -1/Command | Identified Centrium Heavy Armor Plating 40601 | -1/Command | First assault squad dispatched 40769 | -1/Command | Spotted B-99 Colossus 41093 | -1/Command | Spotted M Guard 41093 | -1/Command | Spotted Combat Programmer 41118 | -1/Command | Spotted Combat Programmer 41119 | -1/Command | System corruption reached 30% 41121 | -1/Command | Destroyed Combat Programmer 41131 | -1/Command | Destroyed Combat Programmer 41141 | -1/Command | Spotted M Guard 41141 | -1/Command | Assimilated M Guard with formatsys_high 41141 | -1/Command | Assimilated M Guard with formatsys_high 41227 | -1/Command | Met MAIN.C 41232 | -1/Command | 0b10 Conduit disabled 41245 | -1/Command | Allies destroyed MAIN.C Shell 41246 | -1/Command | MAIN.C activated Command garrisons 41259 | -1/Command | Destroyed MAIN.C 41279 | -1/Command | Discovered new exit (range 38) 41279 | -1/Command | Discovered new exit (range 102) 41279 | -1/Command | Extracted map data and part IDs from MAIN.C's data core 41422 | -1/Command | Found Zero-point Reactor 41426 | -1/Command | Found Vortex Chain Reactor 41433 | -1/Command | Found Spectral Analyzer 41436 | -1/Command | Found Prototype Device 41436 | -1/Command | Identified Exp. Focal Shield 41440 | -1/Command | Found Prototype Device 41440 | -1/Command | Identified Exp. System Purifier 41708 | -1/Command | Build established: Hauler-Mutant 42279 | -1/Command | Destroyed M Guard 42285 | -1/Command | Found AEGIS Remote Shield 42303 | -1/Command | Destroyed M Guard 42303 | -1/Command | All MAIN.C guards destroyed 42304 | -1/Command | Found Corrupted AEGIS Remote Shield 42515 | -1/Command | Found Corrupted Zero-point Reactor 43339 | -1/Command | Build established: Scavenger-Mutant 44197 | -1/Command | Found Exp. Core Analyzer 44433 | -1/Command | Found Exp. Targeting Computer 44960 | -1/Command | Warped through subspace to slip node 44960 | -1/Command | Discovered new exit (range 5) 44968 | -1/Command | Entered Access_0 44969 | -1/Access_0 | Met Architect 44981 | -1/Access_0 | Architect warped through subspace 44984 | -1/Access_0 | Destroyed A8 45024 | -1/Access_0 | Architect warped through subspace 45079 | -1/Access_0 | Subspace Access Node disabled 45092 | -1/Access_0 | Subspace Access Node disabled 45103 | -1/Access_0 | Architect warped through subspace 45113 | -1/Access_0 | A6 warped into view 45171 | -1/Access_0 | Architect warped through subspace 45231 | -1/Access_0 | Architect warped through subspace 45255 | -1/Access_0 | Architect warped through subspace 45288 | -1/Access_0 | A5 warped into view 45296 | -1/Access_0 | Warped through subspace to slip node 45296 | -1/Access_0 | Discovered new exit (range 8) 45301 | *** | Establishing 0b11! Last Messages --------------- Architect warps through subspace. 45258_ Acquired 14 matter. 45260_ Acquired 9 matter. 45268_ Quantum Shear penetrates Wall. 45268_ Penetrated by Quantum Shear. 45271_ Quantum Shear penetrates Wall. 45273_ Penetrated by Quantum Shear. 45273_ Quantum Shear penetrates Wall. 45284_ Penetrated by Quantum Shear. A5 warps into view. 45288_ A5: "I hear we have an intruder. That's a first." 45290_ Imp. Quantum Reactor destroyed. 45291_ Exp. Gyrokinetic Inverter destroyed. 45292_ Penetrated by Quantum Shear. 45292_ Adv. Weapon Cycler destroyed. 45295_ Cmb. Antigrav System destroyed. 45296_ Warped through subspace, drawn to slip node. 45296_ EXIT=FOUND 45297_ A0_RES: I have more important things to do than play hide-and-seek. Deal with this piece of junk if it returns. Map ----- +----------------------------------------------------+ | | | | | | | | | | | | | | | | | | | | | | | | | | | | | | | | | ?????????????????????????????????????????????????? | | ?????????????????????????????????????????????????? | | ?????????????????????????????????????????????????? | | ?????????????????????????????????????????????????? | | ?????????????????????????????????????????????????? | | ?????????????????????????????????????????????????? | | ????????????????????????###??????????????????????? | | ???????????????????????## ##?????????????????????? | | ???????????????????????# #?????????????????????? | | ???????????????????????# @ #?????????????????????? | | ??????????????????????## #?????????????????????? | | ??????????????????????# #?????????????????????? | | ??????????????????????# ##?????????????????????? | | ??????????????????????## #?????????????????????? | | ??????????????????????# #?????????????????????? | | ??????????????????????# ##?????????????????????? | | ??????????????????????# < #?????????????????????? | | ??????????????????????# ##?????????????????????? | | ??????????????????????## #??????????????????????? | | ???????????????????????####??????????????????????? | | ?????????????????????????????????????????????????? | | ?????????????????????????????????????????????????? | | ?????????????????????????????????????????????????? | | ?????????????????????????????????????????????????? | | ?????????????????????????????????????????????????? | | ?????????????????????????????????????????????????? | | ?????????????????????????????????????????????????? | | ?????????????????????????????????????????????????? | | ?????????????????????????????????????????????????? | | ?????????????????????????????????????????????????? | | ?????????????????????????????????????????????????? | | ?????????????????????????????????????????????????? | | ?????????????????????????????????????????????????? | | ?????????????????????????????????????????????????? | +----------------------------------------------------+ Best States ------------- Heat Dissipation 136 Coolant Potential 100 Energy Generation 95 Energy Capacity 1100 Matter Stores 1502 Matter Capacity 1800 Sight Range 24 Robot Scan Range 20 Terrain Scan Range 30 Terrain Scan Density 210 Jamming Range 14 Cloak Strength 4 Corruption Containment 12 Armor Coverage 2400 Core Shielding 30 Weapon Cycling 25 Phase Shifting 15 Evasion (%) 81 Targeting Accuracy 12 Core Analysis 12 Armor Integrity Analysis 40 Recoil Reduction 7 Offensive Hacking 10 Relay Coupler Types 6 Relay Coupler Value 76 Item Schematics ----------------- Huge Storage Unit | -10/Materials | Hacked Cld. Impulse Thruster | -3/Testing | Archive Imp. KE Penetrator | -3/Testing | Archive Spectral Analyzer | -3/Testing | Archive Exp. Myomer Leg | -2/Quarantine | Archive Enh. Force Rifle | -2/Quarantine | Archive Exp. Gyrokinetic Inverter | -2/Quarantine | Archive Imp. Lightning Gun | -2/Quarantine | Archive Hds. Centrium Leg | -2/Quarantine | Archive Exp. Thermal Shield | -2/Section 7 | Archive Com. Linear Accelerator | -2/Section 7 | Archive Proton Burst Cannon | -2/Section 7 | Archive Gravity Neutralizer | -2/Section 7 | Archive Gravity Flail | -2/Section 7 | Archive Robot Schematics ------------------ S-43 Plague | -3/Testing | Archive A-27 Freighter | -2/Quarantine | Archive M-36 Artificer | -2/Quarantine | Archive A-15 Conveyor | -2/Quarantine | Archive B-74 Champion | -2/Quarantine | Archive C-57 Dissector | -2/Quarantine | Archive G-73 Enforcer | -2/Section 7 | Archive K-01 Serf | -2/Section 7 | Archive T-07 Excavator | -1/Access | Archive A-02 Transporter | -1/Access | Archive R-06 Scavenger | -1/Access | Archive R-10 Processor | -1/Access | Archive M-14 Sweeper | -1/Access | Archive M-22 Extractor | -1/Access | Archive M-30 Cleanser | -1/Access | Archive M-13 Machinist | -1/Access | Archive M-28 Smith | -1/Access | Archive O-16 Technician | -1/Access | Archive O-24 Administrator | -1/Access | Archive O-32 Director | -1/Access | Archive W-16 Scout | -1/Access | Archive W-25 Informer | -1/Access | Archive W-44 Eye | -1/Access | Archive S-10 Pest | -1/Access | Archive S-27 Virus | -1/Access | Archive G-34 Mercenary | -1/Access | Archive G-47 Trooper | -1/Access | Archive G-50 Soldier | -1/Access | Archive G-67 Veteran | -1/Access | Archive B-36 Bruiser | -1/Access | Archive B-48 Gladiator | -1/Access | Archive B-60 Warrior | -1/Access | Archive L-31 Rogue | -1/Access | Archive L-41 Fighter | -1/Access | Archive L-61 Swordsman | -1/Access | Archive Y-45 Defender | -1/Access | Archive Y-54 Guardian | -1/Access | Archive Y-64 Sentinel | -1/Access | Archive Y-72 Warden | -1/Access | Archive D-53 Grenadier | -1/Access | Archive D-63 Destroyer | -1/Access | Archive D-83 Annihilator | -1/Access | Archive X-57 Shotgunner | -1/Access | Archive X-62 Marksman | -1/Access | Archive X-67 Chaingunner | -1/Access | Archive X-72 Disruptor | -1/Access | Archive X-77 Beamer | -1/Access | Archive X-82 Rainmaker | -1/Access | Archive X-87 Electro | -1/Access | Archive H-55 Commando | -1/Access | Archive H-66 Slayer | -1/Access | Archive H-77 Assassin | -1/Access | Archive H-88 Terminator | -1/Access | Archive P-60 Hacker | -1/Access | Archive P-70 Sage | -1/Access | Archive P-80 Master | -1/Access | Archive Fabricated ------------ Adv. Weapon Cycler | x2 | -6/Factory | Preloaded Repaired ---------- Nothing Studied --------- Hvy. Assault Rifle | -9/Materials | Hacked Arm. Huge Wheel | -7/Factory | Hacked Hyp. Railgun | -3/Testing | Hacked Com. HERF Cannon | -2/Research | Hacked Imp. Heavy Siege Treads | -2/Research | Hacked Particle Reactor | -2/Research | Hacked Alien Tech Used ----------------- Sigix Broadsword Integrated Reactor Microwarp Drive Core Expander LRC Matter Compressor LRC Storage LRC Armor Sigix Shearcannon Core Regenerator Transdimensional Reconstructor Achievements -------------- None Challenges ------------ None Game ------ Seed HypervelocityRemotePit Manual? 0 Play Time 07:45:29 Cumulative 963.2 hours Start 2025.11.03 @ 13:19:28 End 2025.11.04 @ 02:41:09 Sessions 9 Manual Loads 0 Difficulty Rogue Special Mode None Game No. 300 Rogue 298 Adventurer 2 Explorer 0 Win Type 1 Total 66 Types 19/14/15/1/1/1/11/1/1/2 Lore% 97 Gallery% 94 Achievement% 80 Wizard Run 0 Options --------- Layout 0 ASCII 0 Keyboard 1 Movement Numpad Keybinds 0 Fullscreen 1 Font 24/Smallcaps Map View 76x50 Zoom Use 0% Tactical HUD 1 Map Filters NONE Filters NONE Steam 1 RUN: a9c9db55-014c-465e-a53c-f33fbb1d8ff1